Workbook

Sheet Index
A1: INDEX
A2: =Residuals!A1 -> Residuals & Averages
A3: ='T1'!A1 -> Table 1 - Summary of Demand Tariffs
A4: ='T2'!A1 -> Table 2 - Demand Tariffs
A5: ='T3'!A1 -> Table 3 - Gross HH Demand Tariffs
A6: ='T4'!A1 -> Table 4 - Embedded Export Tariff
A7: ='T5'!A1 -> Table 5 - NHH Demand Tariff Changes
A8: ='T6'!A1 -> Table 6 - Summary of Generation Tariffs
A9: ='T7'!A1 -> Table 7 - Generation Wider Tariffs
A10: ='T8 & Fig 1'!A1 -> Table 8 - Generation Tariff Changes
A11: ='T9'!A1 -> Table 9 - Local Substation Tariffs
A12: ='T10'!A1 -> Table 10 - Onshore Local Circuit Tariffs
A13: ='T11'!A1 -> Table 11 - CMP203: Circuits subject to one-off charges
A14: ='T12'!A1 -> Table 12 - Offshore Local Tariffs
A15: ='T13'!A1 -> Table 13 - Contracted and Modelled TEC
A16: ='T14'!A1 -> Table 14 - Interconnectors
A17: ='T15'!A1 -> Table 15 - Allowed Revenues
A18: ='T16'!A1 -> Table 16 - Generation and Demand Revenue Proportions
A19: ='T17'!A1 -> Table 17 - Charging Bases
A20: ='T18'!A1 -> Table 18 - Residual Calculation
A21: ='T19'!A1 -> Table 19 - Small Generator Discount
A22: ='T20'!A1 -> Table 20 - Demand Locational Tariffs
A23: ='T21'!A1 -> Table 21 - Demand Profiles
A24: ='T22'!A1 -> Table 22 - Annual Load Factors
A25: ='T23'!A1 -> Table 23 - Generic Annual Load Factors
A26: ='T24'!A1 -> Table 24 - Indicative National Grid Revenue Forecast
A27: ='T25'!A1 -> Table 25 - Offshore Revenues

Sheet Residuals
A1: Residuals & Averages | D1: Return to Index
A3: Residual | B3: 2018/19 Draft | C3: 2018/19 Draft | D3: Change
A4: Generation | B4: -2.517938223 | C4: -2.524517958 | D4: =C4-B4 -> -0.006579734419
A5: Demand | B5: 46.93783997 | C5: 46.93342565 | D5: =C5-B5 -> -0.004414317936
A7: Average Tariff | B7: 2018/19 Draft | C7: 2018/19 December | D7: Change
A8: Generation (£/kW) | B8: 5.980623391 | C8: 5.979268208 | D8: =C8-B8 -> -0.001355183101 | E8: N.B. These generation average tariffs include local tariffs
A9: HH Demand (£/kW) | B9: 46.16732307 | C9: 46.17024446 | D9: =C9-B9 -> 0.002921383652
A10: NHH Demand (p/kWh) | B10: 6.210565799 | C10: 6.210970802 | D10: 0.0004050037405
A11: Embedded Export (£/kW) | B11: 26.90657855 | C11: 26.91467252 | D11: 0.008093971836

Sheet T1
A1: Table 1 - Summary of Demand Tariffs | D1: Return to Index
A3: HH Tariffs | B3: 2018/19 Draft | C3: 2018/19 Final | D3: Change
A4: Average Tariff (£/kW) | B4: 46.16732307 | C4: 46.170244 | D4: =C4-B4 -> 0.002920926045
A5: Residual (£/kW) | B5: 46.93783997 | C5: 46.933426 | D5: =C5-B5 -> -0.004413967609
A6: EET | B6: 2018/19 Draft | C6: 2018/19 Final | D6: Change
A7: Average Tariff (£/kW) | B7: 26.90657855 | C7: 26.914673 | D7: 0.008094450182
A8: Phased residual (£/kW) | B8: 29.36 | C8: 29.36 | D8: 0
A9: AGIC (£/kW) | B9: 3.22 | C9: 3.22 | D9: 0
A10: Embedded Export Volume (GW) | B10: 6.515802595 | C10: 6.515802595 | D10: 0
A11: Total Credit (£m) | B11: 175.3179543 | C11: 175.3706931 | D11: 0.0527387227
A12: NHH Tariffs | B12: 2018/19 Draft | C12: 2018/19 Final | D12: Change
A13: Average (p/kWh) | B13: 6.210565799 | C13: 6.210971 | D13: =C13-B13 -> 0.0004052013864

Sheet T2
A1: Table 2 - Demand Tariffs | E1: Return to Index
A3: Zone | B3: Zone Name | C3: HH Demand Tariff (£/kW) | D3: NHH Demand Tariff (p/kWh) | E3: Embedded Export Tariff (£/kW)
A4: 1 | B4: Northern Scotland | C4: 26.304232 | D4: 3.509185 | E4: 11.357806
A5: 2 | B5: Southern Scotland | C5: 29.070427 | D5: 3.91834 | E5: 14.124001
A6: 3 | B6: Northern | C6: 37.816827 | D6: 4.999041 | E6: 22.870402
A7: 4 | B7: North West | C7: 43.806241 | D7: 5.881985 | E7: 28.859815
A8: 5 | B8: Yorkshire | C8: 44.073211 | D8: 5.785198 | E8: 29.126786
A9: 6 | B9: N Wales & Mersey | C9: 45.512765 | D9: 5.928967 | E9: 30.566339
A10: 7 | B10: East Midlands | C10: 47.501489 | D10: 6.345087 | E10: 32.555063
A11: 8 | B11: Midlands | C11: 48.796991 | D11: 6.732502 | E11: 33.850566
A12: 9 | B12: Eastern | C12: 49.428549 | D12: 7.157677 | E12: 34.482123
A13: 10 | B13: South Wales | C13: 45.80441 | D13: 5.552697 | E13: 30.857984
A14: 11 | B14: South East | C14: 52.110398 | D14: 7.713198 | E14: 37.163973
A15: 12 | B15: London | C15: 54.906683 | D15: 6.10617 | E15: 39.960257
A16: 13 | B16: Southern | C16: 53.419807 | D16: 7.317489 | E16: 38.473382
A17: 14 | B17: South Western | C17: 51.86752 | D17: 7.560093 | E17: 36.921094
A19: Tariffs include small gen tariff of: | C19: 0.593 | D19: 0.080127
A20: Residual charge for demand: | C20: 46.93342565

Sheet T3
A1: Table 3 - Gross HH Demand Tariffs | F1: Return to Index
A3: Zone | B3: Zone Name | C3: 2018/19 Draft (£/kW) | D3: 2018/19 Final (£/kW) | E3: Change (£/kW) | F3: Change in Residual (£/kW)
A4: 1 | B4: Northern Scotland | C4: 26.298678 | D4: 26.304232 | E4: =D4-C4 -> 0.005554 | F4: -0.004414350327
A5: 2 | B5: Southern Scotland | C5: 29.058761 | D5: 29.070427 | E5: =D5-C5 -> 0.011666 | F5: =+F4 -> -0.004414350327
A6: 3 | B6: Northern | C6: 37.816645 | D6: 37.816827 | E6: 0.000182 | F6: =+F5 -> -0.004414350327
A7: 4 | B7: North West | C7: 43.804081 | D7: 43.806241 | E7: 0.00216 | F7: -0.004414350327
A8: 5 | B8: Yorkshire | C8: 44.071351 | D8: 44.073211 | E8: 0.00186 | F8: -0.004414350327
A9: 6 | B9: N Wales & Mersey | C9: 45.509619 | D9: 45.512765 | E9: 0.003146 | F9: -0.004414350327
A10: 7 | B10: East Midlands | C10: 47.499335 | D10: 47.501489 | E10: 0.002154 | F10: -0.004414350327
A11: 8 | B11: Midlands | C11: 48.794504 | D11: 48.796991 | E11: 0.002487 | F11: -0.004414350327
A12: 9 | B12: Eastern | C12: 49.426516 | D12: 49.428549 | E12: 0.002033 | F12: -0.004414350327
A13: 10 | B13: South Wales | C13: 45.802151 | D13: 45.80441 | E13: 0.002259 | F13: -0.004414350327
A14: 11 | B14: South East | C14: 52.108295 | D14: 52.110398 | E14: 0.002103 | F14: -0.004414350327
A15: 12 | B15: London | C15: 54.90461 | D15: 54.906683 | E15: 0.002073 | F15: -0.004414350327
A16: 13 | B16: Southern | C16: 53.417644 | D16: 53.419807 | E16: 0.002163 | F16: -0.004414350327
A17: 14 | B17: South Western | C17: 51.865303 | D17: 51.86752 | E17: 0.002217 | F17: -0.004414350327

Sheet T4
A1: Table 4 - Embedded Export Tariff | E1: Return to Index
A4: Zone | B4: Zone Name | C4: 2018/19 Draft (£/kW) | D4: 2018/19 Final (£/kW) | E4: Change (£/kW)
A5: 1 | B5: Northern Scotland | C5: 11.347693 | D5: 11.357806 | E5: =D5-C5 -> 0.010113
A6: 2 | B6: Southern Scotland | C6: 14.107776 | D6: 14.124001 | E6: =D6-C6 -> 0.016225
A7: 3 | B7: Northern | C7: 22.865659 | D7: 22.870402 | E7: 0.004743
A8: 4 | B8: North West | C8: 28.853095 | D8: 28.859815 | E8: 0.00672
A9: 5 | B9: Yorkshire | C9: 29.120365 | D9: 29.126786 | E9: 0.006421
A10: 6 | B10: N Wales & Mersey | C10: 30.558634 | D10: 30.566339 | E10: 0.007705
A11: 7 | B11: East Midlands | C11: 32.54835 | D11: 32.555063 | E11: 0.006713
A12: 8 | B12: Midlands | C12: 33.843518 | D12: 33.850566 | E12: 0.007048
A13: 9 | B13: Eastern | C13: 34.475531 | D13: 34.482123 | E13: 0.006592
A14: 10 | B14: South Wales | C14: 30.851165 | D14: 30.857984 | E14: 0.006819
A15: 11 | B15: South East | C15: 37.15731 | D15: 37.163973 | E15: 0.006663
A16: 12 | B16: London | C16: 39.953624 | D16: 39.960257 | E16: 0.006633
A17: 13 | B17: Southern | C17: 38.466659 | D17: 38.473382 | E17: 0.006723
A18: 14 | B18: South Western | C18: 36.914318 | D18: 36.921094 | E18: 0.006776

Sheet T5
A1: Table 5 - NHH Demand Tariff Changes | E1: Return to Index
A3: Zone | B3: Zone Name | C3: 2018/19 Draft (p/kWh) | D3: 2018/19 Final (p/kWh) | E3: Change (p/kWh)
A4: 1 | B4: Northern Scotland | C4: 3.508445 | D4: 3.509185 | E4: =D4-C4 -> 0.00074
A5: 2 | B5: Southern Scotland | C5: 3.916767 | D5: 3.91834 | E5: =D5-C5 -> 0.001573
A6: 3 | B6: Northern | C6: 4.999018 | D6: 4.999041 | E6: =D6-C6 -> 2.3e-05
A7: 4 | B7: North West | C7: 5.881695 | D7: 5.881985 | E7: 0.00029
A8: 5 | B8: Yorkshire | C8: 5.784955 | D8: 5.785198 | E8: 0.000243
A9: 6 | B9: N Wales & Mersey | C9: 5.928558 | D9: 5.928967 | E9: 0.000409
A10: 7 | B10: East Midlands | C10: 6.3448 | D10: 6.345087 | E10: 0.000287
A11: 8 | B11: Midlands | C11: 6.732159 | D11: 6.732502 | E11: 0.000343
A12: 9 | B12: Eastern | C12: 7.157381 | D12: 7.157677 | E12: 0.000296
A13: 10 | B13: South Wales | C13: 5.552425 | D13: 5.552697 | E13: 0.000272
A14: 11 | B14: South East | C14: 7.712884 | D14: 7.713198 | E14: 0.000314
A15: 12 | B15: London | C15: 6.105943 | D15: 6.10617 | E15: 0.000227
A16: 13 | B16: Southern | C16: 7.317192 | D16: 7.317489 | E16: 0.000297
A17: 14 | B17: South Western | C17: 7.559768 | D17: 7.560093 | E17: 0.000325

Sheet T6
A1: Table 6 - Summary of Generation Tariffs | F1: Return to Index
A3: Generation Tariffs | B3: 2018/19 February | C3: 2018/19 June | D3: 2018/19 Draft | E3: 2018/19 Final | F3: Change since last forecast
A4: Residual | B4: -3.203600603 | C4: -3.282082833 | D4: -2.517938223 | E4: -2.524517958 | F4: =E4-D4 -> -0.006579734419
A5: Average Generation Tariff | B5: 6.386695769 | C5: 6.173472488 | D5: 5.980623391 | E5: 5.979268208 | F5: =E5-D5 -> -0.001355183101 | G5: N.B. These generation average tariffs include local tariffs

Sheet T7
A1: Table 7 - Generation Wider Tariffs | I1: Return to Index
G2: Example tariffs for a generator of each technology type:
C3: System Peak | D3: Shared Year Round | E3: Not Shared Year Round | F3: Residual | G3: Conventional Carbon 80% | H3: Conventional Low Carbon 80% | I3: Intermittent 40%
A4: Zone | B4: Zone Name | C4: Tariff (£/kW) | D4: Tariff (£/kW) | E4: Tariff (£/kW) | F4: Tariff (£/kW) | G4: Tariff (£/kW) | H4: Tariff (£/kW) | I4: Tariff (£/kW)
A5: 1 | B5: North Scotland | C5: -1.224803 | D5: 7.0871 | E5: 23.713708 | F5: -2.524518 | G5: 20.8913254 | H5: 25.634067 | I5: 24.02403
A6: 2 | B6: East Aberdeenshire | C6: -1.564833 | D6: 7.0871 | E6: 16.322341 | F6: -2.524518 | G6: 14.6382018 | H6: 17.90267 | I6: 16.632663
A7: 3 | B7: Western Highlands | C7: -1.151336 | D7: 6.7424 | E7: 23.080718 | F7: -2.524518 | G7: 20.1826404 | H7: 24.798784 | I7: 23.25316
A8: 4 | B8: Skye and Lochalsh | C8: -7.08088 | D8: 6.7424 | E8: 22.985475 | F8: -2.524518 | G8: 14.176902 | H8: 18.773997 | I8: 23.157917
A9: 5 | B9: Eastern Grampian and Tayside | C9: 0.223873 | D9: 5.961071 | E9: 20.926257 | F9: -2.524518 | G9: 19.2092174 | H9: 23.3944688 | I9: 20.7861674
A10: 6 | B10: Central Grampian | C10: -0.540154 | D10: 5.607589 | E10: 19.625995 | F10: -2.524518 | G10: 17.1221952 | H10: 21.0473942 | I10: 19.3445126
A11: 7 | B11: Argyll | C11: -4.281853 | D11: 4.946349 | E11: 19.310849 | F11: -2.524518 | G11: 12.5993874 | H11: 16.4615572 | I11: 18.7648706
A12: 8 | B12: The Trossachs | C12: 0.121027 | D12: 4.946349 | E12: 17.123688 | F12: -2.524518 | G12: 15.2525386 | H12: 18.6772762 | I12: 16.5777096
A13: 9 | B13: Stirlingshire and Fife | C13: -0.695178 | D13: 3.823151 | E13: 15.54775 | F13: -2.524518 | G13: 12.2770248 | H13: 15.3865748 | I13: 14.5524924
A14: 10 | B14: South West Scotlands | C14: 2.759793 | D14: 5.32163 | E14: 17.252322 | F14: -2.524518 | G14: 18.2944366 | H14: 21.744901 | I14: 16.856456
A15: 11 | B15: Lothian and Borders | C15: 2.921369 | D15: 5.32163 | E15: 11.337033 | F15: -2.524518 | G15: 13.7237814 | H15: 15.991188 | I15: 10.941167
A16: 12 | B16: Solway and Cheviot | C16: 1.847792 | D16: 3.299568 | E16: 9.394343 | F16: -2.524518 | G16: 9.4784028 | H16: 11.3572714 | I16: 8.1896522
A17: 13 | B17: North East England | C17: 3.435017 | D17: 2.166433 | E17: 4.738297 | F17: -2.524518 | G17: 6.434283 | H17: 7.3819424 | I17: 3.0803522
A18: 14 | B18: North Lancashire and The Lakes | C18: 1.753699 | D18: 2.166433 | E18: 3.628899 | F18: -2.524518 | G18: 3.8654466 | H18: 4.5912264 | I18: 1.9709542
A19: 15 | B19: South Lancashire, Yorkshire and Humber | C19: 4.369952 | D19: 0.915048 | E19: 0.108511 | F19: -2.524518 | G19: 2.6642812 | H19: 2.6859834 | I19: -2.0499878
A20: 16 | B20: North Midlands and North Wales | C20: 3.793481 | D20: -0.903367 | E20: 0 | F20: -2.524518 | G20: 0.5462694 | H20: 0.5462694 | I20: -2.8858648
A21: 17 | B21: South Lincolnshire and North Norfolk | C21: 2.20575 | D21: -0.386413 | E21: 0 | F21: -2.524518 | G21: -0.6278984 | H21: -0.6278984 | I21: -2.6790832
A22: 18 | B22: Mid Wales and The Midlands | C22: 1.283844 | D22: -0.092373 | E22: 0 | F22: -2.524518 | G22: -1.3145724 | H22: -1.3145724 | I22: -2.5614672
A23: 19 | B23: Anglesey and Snowdon | C23: 4.578802 | D23: -0.988018 | E23: 0 | F23: -2.524518 | G23: 1.2638696 | H23: 1.2638696 | I23: -2.9197252
A24: 20 | B24: Pembrokeshire | C24: 9.102191 | D24: -4.448024 | E24: 0 | F24: -2.524518 | G24: 3.0192538 | H24: 3.0192538 | I24: -4.3037276
A25: 21 | B25: South Wales & Gloucester | C25: 6.189622 | D25: -4.419923 | E25: 0 | F25: -2.524518 | G25: 0.1291656 | H25: 0.1291656 | I25: -4.2924872
A26: 22 | B26: Cotswold | C26: 3.140018 | D26: 2.19069 | E26: -6.586203 | F26: -2.524518 | G26: -2.9009104 | H26: -4.218151 | I26: -8.234445
A27: 23 | B27: Central London | C27: -5.396903 | D27: 2.19069 | E27: -6.369195 | F27: -2.524518 | G27: -11.264225 | H27: -12.538064 | I27: -8.017437
A28: 24 | B28: Essex and Kent | C28: -3.773103 | D28: 2.19069 | E28: 0 | F28: -2.524518 | G28: -4.545069 | H28: -4.545069 | I28: -1.648242
A29: 25 | B29: Oxfordshire, Surrey and Sussex | C29: -1.273475 | D29: -2.863212 | E29: 0 | F29: -2.524518 | G29: -6.0885626 | H29: -6.0885626 | I29: -3.6698028
A30: 26 | B30: Somerset and Wessex | C30: -1.323025 | D30: -4.266571 | E30: 0 | F30: -2.524518 | G30: -7.2607998 | H30: -7.2607998 | I30: -4.2311464
A31: 27 | B31: West Devon and Cornwall | C31: 0.166003 | D31: -5.66347 | E31: 0 | F31: -2.524518 | G31: -6.889291 | H31: -6.889291 | I31: -4.789906
C33: Small Generation Discount (£/kW) | F33: 11.102227

Sheet T8 & Fig 1
A1: Table 8 - Generation Tariff Changes | L1: Return to Index
A3: Wider Generation Tariffs (£/kW)
C4: Conventional Carbon 80% | F4: Conventional Low Carbon 80% | I4: Intermittent 40% | L4: Change in Residual (£/kW)
A5: Zone | B5: Zone Name | C5: 2018/19 Draft (£/kW) | D5: 2018/19 Final (£/kW) | E5: Change (£/kW) | F5: 2018/19 Draft (£/kW) | G5: 2018/19 Final (£/kW) | H5: Change (£/kW) | I5: 2018/19 Draft (£/kW) | J5: 2018/19 Final (£/kW) | K5: Change (£/kW)
A6: 1 | B6: North Scotland | C6: 21.501234 | D6: 20.8913254 | E6: =D6-C6 -> -0.6099086 | F6: 26.3651464 | G6: 25.634067 | H6: =G6-F6 -> -0.7310794 | I6: 24.7095252 | J6: 24.02403 | K6: =J6-I6 -> -0.6854952 | L6: -0.006579957908
A7: 2 | B7: East Aberdeenshire | C7: 14.1646298 | D7: 14.6382018 | E7: 0.473572 | F7: 17.2757064 | G7: 17.90267 | H7: =G7-F7 -> 0.6269636 | I7: 15.9453462 | J7: 16.632663 | K7: =J7-I7 -> 0.6873168 | L7: =+L6 -> -0.006579957908
A8: 3 | B8: Western Highlands | C8: 20.8772952 | D8: 20.1826404 | E8: -0.6946548 | F8: 25.6209776 | G8: 24.798784 | H8: -0.8221936 | I8: 23.9774308 | J8: 23.25316 | K8: =J8-I8 -> -0.7242708 | L8: =+L7 -> -0.006579957908
A9: 4 | B9: Skye and Lochalsh | C9: 14.8631188 | D9: 14.176902 | E9: -0.6862168 | F9: 19.5857936 | G9: 18.773997 | H9: -0.8117966 | I9: 23.8723928 | J9: 23.157917 | K9: -0.7144758 | L9: -0.006579957908
A10: 5 | B10: Eastern Grampian and Tayside | C10: 19.5071386 | D10: 19.2092174 | E10: -0.2979212 | F10: 23.750084 | G10: 23.3944688 | H10: -0.3556152 | I10: 21.110555 | J10: 20.7861674 | K10: -0.3243876 | L10: -0.006579957908
A11: 6 | B11: Central Grampian | C11: 17.1953986 | D11: 17.1221952 | E11: -0.0732034 | F11: 21.134204 | G11: 21.0473942 | H11: -0.0868098 | I11: 19.424491 | J11: 19.3445126 | K11: -0.0799784 | L11: -0.006579957908
A12: 7 | B12: Argyll | C12: 12.6444194 | D12: 12.5993874 | E12: -0.045032 | F12: 16.5142902 | G12: 16.4615572 | H12: -0.052733 | I12: 18.8133156 | J12: 18.7648706 | K12: -0.048445 | L12: -0.006579957908
A13: 8 | B13: The Trossachs | C13: 15.306033 | D13: 15.2525386 | E13: -0.0534944 | F13: 18.7405802 | G13: 18.6772762 | H13: -0.063304 | I13: 16.6366976 | J13: 16.5777096 | K13: -0.058988 | L13: -0.006579957908
A14: 9 | B14: Stirlingshire and Fife | C14: 12.2685688 | D14: 12.2770248 | E14: 0.008456 | F14: 15.3791256 | G14: 15.3865748 | H14: 0.0074492 | I14: 14.5549188 | J14: 14.5524924 | K14: -0.0024264 | L14: -0.006579957908
A15: 10 | B15: South West Scotlands | C15: 18.3606656 | D15: 18.2944366 | E15: -0.066229 | F15: 21.8219672 | G15: 21.744901 | H15: -0.0770662 | I15: 16.9253176 | J15: 16.856456 | K15: -0.0688616 | L15: -0.006579957908
A16: 11 | B16: Lothian and Borders | C16: 13.7325986 | D16: 13.7237814 | E16: -0.0088172 | F16: 15.9965952 | G16: 15.991188 | H16: -0.0054072 | I16: 10.9387926 | J16: 10.941167 | K16: 0.0023744 | L16: -0.006579957908
A17: 12 | B17: Solway and Cheviot | C17: 9.489203 | D17: 9.4784028 | E17: -0.0108002 | F17: 11.3679694 | G17: 11.3572714 | H17: -0.010698 | I17: 8.1981872 | J17: 8.1896522 | K17: -0.008535 | L17: -0.006579957908
A18: 13 | B18: North East England | C18: 6.4445248 | D18: 6.434283 | E18: -0.0102418 | F18: 7.3919866 | G18: 7.3819424 | H18: -0.0100442 | I18: 3.0883638 | J18: 3.0803522 | K18: -0.0080116 | L18: -0.006579957908
A19: 14 | B19: North Lancashire and The Lakes | C19: 3.8772324 | D19: 3.8654466 | E19: -0.0117858 | F19: 4.6032056 | G19: 4.5912264 | H19: -0.0119792 | I19: 1.9809208 | J19: 1.9709542 | K19: -0.0099666 | L19: -0.006579957908
A20: 15 | B20: South Lancashire, Yorkshire and Humber | C20: 2.6758602 | D20: 2.6642812 | E20: -0.011579 | F20: 2.6976378 | G20: 2.6859834 | H20: -0.0116544 | I20: -2.0404636 | J20: -2.0499878 | K20: -0.0095242 | L20: -0.006579957908
A21: 16 | B21: North Midlands and North Wales | C21: 0.5524594 | D21: 0.5462694 | E21: -0.00619 | F21: 0.5524594 | G21: 0.5462694 | H21: -0.00619 | I21: -2.8792508 | J21: -2.8858648 | K21: -0.006614 | L21: -0.006579957908
A22: 17 | B22: South Lincolnshire and North Norfolk | C22: -0.6162036 | D22: -0.6278984 | E22: -0.0116948 | F22: -0.6162036 | G22: -0.6278984 | H22: -0.0116948 | I22: -2.6697248 | J22: -2.6790832 | K22: -0.0093584 | L22: -0.006579957908
A23: 18 | B23: Mid Wales and The Midlands | C23: -1.3027194 | D23: -1.3145724 | E23: -0.011853 | F23: -1.3027194 | G23: -1.3145724 | H23: -0.011853 | I23: -2.5520272 | J23: -2.5614672 | K23: -0.00944 | L23: -0.006579957908
A24: 19 | B24: Anglesey and Snowdon | C24: 1.2768436 | D24: 1.2638696 | E24: -0.012974 | F24: 1.2768436 | G24: 1.2638696 | H24: -0.012974 | I24: -2.9096992 | J24: -2.9197252 | K24: -0.010026 | L24: -0.006579957908
A25: 20 | B25: Pembrokeshire | C25: 3.031204 | D25: 3.0192538 | E25: -0.0119502 | F25: 3.031204 | G25: 3.0192538 | H25: -0.0119502 | I25: -4.294236 | J25: -4.3037276 | K25: -0.0094916 | L25: -0.006579957908
A26: 21 | B26: South Wales & Gloucester | C26: 0.1411072 | D26: 0.1291656 | E26: -0.0119416 | F26: 0.1411072 | G26: 0.1291656 | H26: -0.0119416 | I26: -4.2830004 | J26: -4.2924872 | K26: -0.0094868 | L26: -0.006579957908
A27: 22 | B27: Cotswold | C27: -2.8889768 | D27: -2.9009104 | E27: -0.0119336 | F27: -4.2061886 | G27: -4.218151 | H27: -0.0119624 | I27: -8.2248758 | J27: -8.234445 | K27: -0.0095692 | L27: -0.006579957908
A28: 23 | B28: Central London | C28: -11.252416 | D28: -11.264225 | E28: -0.011809 | F28: -12.5262586 | G28: -12.538064 | H28: -0.0118054 | I28: -8.0080298 | J28: -8.017437 | K28: -0.0094072 | L28: -0.006579957908
A29: 24 | B29: Essex and Kent | C29: -4.5332456 | D29: -4.545069 | E29: -0.0118234 | F29: -4.5332456 | G29: -4.545069 | H29: -0.0118234 | I29: -1.6388168 | J29: -1.648242 | K29: -0.0094252 | L29: -0.006579957908
A30: 25 | B30: Oxfordshire, Surrey and Sussex | C30: -6.076677 | D30: -6.0885626 | E30: -0.0118856 | F30: -6.076677 | G30: -6.0885626 | H30: -0.0118856 | I30: -3.660346 | J30: -3.6698028 | K30: -0.0094568 | L30: -0.006579957908
A31: 26 | B31: Somerset and Wessex | C31: -7.2489226 | D31: -7.2607998 | E31: -0.0118772 | F31: -7.2489226 | G31: -7.2607998 | H31: -0.0118772 | I31: -4.2216928 | J31: -4.2311464 | K31: -0.0094536 | L31: -0.006579957908
A32: 27 | B32: West Devon and Cornwall | C32: -6.8773932 | D32: -6.889291 | E32: -0.0118978 | F32: -6.8773932 | G32: -6.889291 | H32: -0.0118978 | I32: -4.7804416 | J32: -4.789906 | K32: -0.0094644 | L32: -0.006579957908
A34: Figure 1 - Variation in Generation Zonal Tariffs

Sheet T9
A1: Table 9 - Local Substation Tariffs | E1: Return to Index
A3: 2018/19 Local Substation Tariff (£/kW)
A4: Substation Rating | B4: Connection Type | C4: 132kV | D4: 275kV | E4: 400kV
A6: <1320 MW | B6: No redundancy | C6: 0.191582 | D6: 0.109597 | E6: 0.078967
A7: <1320 MW | B7: Redundancy | C7: 0.422039 | D7: 0.261118 | E7: 0.189906
A8: >=1320 MW | B8: No redundancy | C8: 0 | D8: 0.343635 | E8: 0.248518
A9: >=1320 MW | B9: Redundancy | C9: 0 | D9: 0.564161 | E9: 0.411791

Sheet T10
A1: Table 10 - Onshore Local Circuit Tariffs | G1: Return to Index
A3: Substation Name | B3: (£/kW) | C3: Substation Name | D3: (£/kW) | E3: Substation Name | F3: (£/kW)
A4: Aberdeen Bay | B4: 2.48796268 | C4: Dumnaglass | D4: 1.771588771 | E4: Langage | F4: 0.6276203765
A5: Achruach | B5: 4.09625788 | C5: Dunhill | D5: 1.366741665 | E5: Lochay | F5: 0.3491877445
A6: Aigas | B6: 0.6240823152 | C6: Dunlaw Extension | D6: 1.430013981 | E6: Luichart | F6: 0.5472434292
A7: An Suidhe | B7: 2.907302099 | C7: Edinbane | D7: 6.530545041 | E7: Marchwood | F7: 0.3642581001
A8: Arecleoch | B8: 1.981849538 | C8: Ewe Hill | D8: 1.311273278 | E8: Mark Hill | F8: 0.8354791164
A9: Baglan Bay | B9: 0.7259261876 | C9: Fallago | D9: 0.5724359554 | E9: Middle Muir | F9: 1.891433616
A10: Beinneun Wind Farm | B10: 1.433206481 | C10: Farr | D10: 3.402170278 | E10: Middleton | F10: 0.1046236172
A11: Bhlaraidh Wind Farm | B11: 0.6279045845 | C11: Fernoch | D11: 4.197281293 | E11: Millennium South | F11: 0.89856718
A12: Black Hill | B12: 0.8232713323 | C12: Ffestiniogg | D12: 0.2414149876 | E12: Millennium Wind | F12: 1.742732904
A13: Black Law | B13: 1.66737148 | C13: Finlarig | D13: 0.3055392765 | E13: Moffat | F13: 0.1600835841
A14: BlackCraig Wind Farm | B14: 6.006840351 | C14: Foyers | D14: 0.7185120401 | E14: Mossford | F14: 0.4276742224
A15: BlackLaw Extension | B15: 3.53587705 | C15: Galawhistle | D15: 1.411300468 | E15: Nant | F15: -1.172240611
A16: Carrington | B16: -0.03226307756 | C16: Gills Bay | D16: 2.403062267 | E16: Necton | F16: -0.3515363976
A17: Clyde (North) | B17: 0.1046458691 | C17: Glendoe | D17: 1.755201013 | E17: Rhigos | F17: 0.09711054277
A18: Clyde (South) | B18: 0.1210178841 | C18: Glenglass | D18: 9.266283914 | E18: Rocksavage | F18: 0.01689341621
A19: Corriegarth | B19: 3.008295366 | C19: Gordonbush | D19: 0.2485684212 | E19: Saltend | F19: 0.3253668753
A20: Corriemoillie | B20: 1.587572753 | C20: Griffin Wind | D20: 4.075369665 | E20: South Humber Bank | F20: 0.902631262
A21: Coryton | B21: 0.04950207409 | C21: Hadyard Hill | D21: 2.641167385 | E21: Spalding | F21: 0.2679216807
A22: Cruachan | B22: 1.805083945 | C22: Harestanes | D22: 2.390520302 | E22: Strathbrora | F22: 0.1214503723
A23: Crystal Rig | B23: 0.4895886353 | C23: Hartlepool | D23: 0.5732878041 | E23: Strathy Wind | F23: 1.997707085
A24: Culligran | B24: 1.653832774 | C24: Hedon | D24: 0.1726652849 | E24: Stronelairg | F24: 1.375662921
A25: Deanie | B25: 2.717010986 | C25: Invergarry | D25: 1.353892745 | E25: Wester Dod | F25: 0.8142848757
A26: Dersalloch | B26: 2.298524374 | C26: Kilgallioch | D26: 1.004262776 | E26: Whitelee | F26: 0.1012701959
A27: Didcot | B27: 0.4961190372 | C27: Killingholme | D27: 0.6766686021 | E27: Whitelee Extension | F27: 0.2815311447
A28: Dinorwig | B28: 2.28943186 | C28: Kilmorack | D28: 0.1884507041
A29: Dorenell | B29: 2.002551889 | C29: Kype Muir | D29: 1.415342586

Sheet T11
A1: Table 11 - CMP203: Circuits subject to one-off charges | E1: Return to Index
A3: Node 1 | B3: Node 2 | C3: Actual Parameters | D3: Amendment in Transport Model | E3: Generator
A4: Dyce 132kV | B4: Aberdeen Bay 132kV | C4: 9.5km of Cable | D4: 9.5km of OHL | E4: Aberdeen Bay
A5: Crystal Rig 132kV | B5: Wester Dod 132kV | C5: 3.9km of Cable | D5: 3.9km of OHL | E5: Aikengall II
A6: Wishaw 132kV | B6: Blacklaw 132kV | C6: 11.46km of Cable | D6: 11.46km of OHL | E6: Blacklaw
A7: Farigaig 132kV | B7: Corriegarth 132kV | C7: 4km Cable | D7: 4km OHL | E7: Corriegarth
A8: Elvanfoot 275kV | B8: Clyde North 275kV | C8: 6.2km of Cable | D8: 6.2km of OHL | E8: Clyde North
A9: Elvanfoot 275kV | B9: Clyde South 275kV | C9: 7.17km of Cable | D9: 7.17km of OHL | E9: Clyde South
A10: Farigaig 132kV | B10: Dunmaglass 132kV | C10: 4km Cable | D10: 4km OHL | E10: Dunmaglass
A11: Coalburn 132kV | B11: Galawhistle 132kV | C11: 9.7km cable | D11: 9.7km OHL | E11: Galawhistle II
A12: Moffat 132kV | B12: Harestanes 132kV | C12: 15.33km cable | D12: 15.33km OHL | E12: Harestanes
A13: Coalburn 132kV | B13: Kype Muir 132kV | C13: 17km cable | D13: 17km OHL | E13: Kype Muir
A14: Coalburn 132kV | B14: Middle Muir 132kV | C14: 13km cable | D14: 13km OHL | E14: Middle Muir
A15: Melgarve 132kV | B15: Stronelairg 132kV | C15: 10km cable | D15: 10km OHL | E15: Stronelairg
A16: East Kilbride South 275kV | B16: Whitelee 275kV | C16: 6km of Cable | D16: 6km of OHL | E16: Whitelee
A17: East Kilbride South 275kV | B17: Whitelee Extension 275kV | C17: 16.68km of Cable | D17: 16.68km of OHL | E17: Whitelee Extension

Sheet T12
A1: Table 12 - Offshore Local Tariffs | D1: Return to Index
A3: Offshore Generator | B3: Tariff Component (£/kW)
B4: Substation | C4: Circuit | D4: ETUoS
A5: Barrow | B5: 7.720148 | C5: 40.391807 | D5: 1.002984
A6: Greater Gabbard | B6: 14.47436992 | C6: 33.26067683 | D6: 0
A7: Gunfleet | B7: 16.70807 | C7: 15.339316 | D7: 2.867007
A8: Gwynt Y Mor | B8: 17.62746603 | C8: 17.36523156 | D8: 0
A9: Lincs | B9: 14.4276771 | C9: 56.48765336 | D9: 0
A10: London Array | B10: 9.821298433 | C10: 33.4507957 | D10: 0
A11: Ormonde | B11: 23.866552 | C11: 44.46115 | D11: 0.354318
A12: Robin Rigg East | B12: -0.441499 | C12: 29.245531 | D12: 9.064537
A13: Robin Rigg West | B13: -0.441499 | C13: 29.245531 | D13: 9.064537
A14: Sheringham Shoal | B14: 23.05922514 | C14: 27.04306943 | D14: 0.5878368448
A15: Thanet | B15: 17.56043788 | C15: 32.72137254 | D15: 0.7877189895
A16: Walney 1 | B16: 20.597966 | C16: 41.020795 | D16: 0
A17: Walney 2 | B17: 20.448162 | C17: 41.38219 | D17: 0
A18: West of Duddon Sands | B18: 7.948192398 | C18: 39.21940391 | D18: 0
A19: Westermost Rough | B19: 16.73622202 | C19: 28.31052573 | D19: 0
A20: Humber Gateway | B20: 14.02743313 | C20: 31.6505643 | D20: 0

Sheet T13
A1: Table 13 - Contracted and Modelled TEC | F1: Return to Index
A3: (GW) | B3: 2017/18 | C3: 2018/19 Initial Forecast | D3: 2018/19 June Forecast | E3: 2018/19 Oct Forecast | F3: 2018/19 Draft Tariffs | G3: 2018/19 Final Tariffs
A4: Contracted TEC | B4: 72.19346 | C4: =79569.06/1000 -> 79.56906 | D4: =78825.61/1000 -> 78.82561 | E4: 82.44561 | F4: 79.02881 | G4: 79.02881
A5: Modelled Best View TEC | B5: 72.19346 | C5: =72619.66/1000 -> 72.61966 | D5: =75456.41/1000 -> 75.45641 | E5: 79.68341 | F5: 79.02881 | G5: 79.02881
A6: Chargeable TEC | B6: 67.57976 | C6: 66.83466 | D6: 69.67141 | E6: 74.97841 | F6: 71.91801 | G6: 71.93431

Sheet T14
A1: Table 14 - Interconnectors | G1: Return to Index
A3: Interconnector | B3: Site | C3: Interconnected System | D3: Generation Zone | E3: Transport Model (Generation MW) Peak | F3: Transport Model (Generation MW) Year Round | G3: Charging Base (Generation MW)
A4: IFA Interconnector | B4: Sellindge 400kV | C4: France | D4: 24 | E4: 0 | F4: 2000 | G4: 0
A5: ElecLink | B5: Sellindge 400kV | C5: France | D5: 24 | E5: 0 | F5: 1000 | G5: 0
A6: BritNed | B6: Grain 400kV | C6: Netherlands | D6: 24 | E6: 0 | F6: 1200 | G6: 0
A7: East - West | B7: Deesside 400kV | C7: Republic of Ireland | D7: 16 | E7: 0 | F7: 505 | G7: 0
A8: Moyle | B8: Auchencrosh 275kV | C8: Northern Ireland | D8: 10 | E8: 0 | F8: 80 | G8: 0

Sheet T15
A1: Table 15 - Allowed Revenues | G1: Return to Index
A3: £m Nominal Value | B3: 2017/18 TNUoS Revenue | C3: 2018/19 TNUoS Revenue
B4: Jan 2017 Final | C4: Feb 2017 Initial View | D4: June 2017 Update | E4: Oct 2017 Update | F4: Dec 2017 Draft | G4: Jan 2018 Final
A5: National Grid
A6: Price controlled revenue | B6: 1748.757098 | C6: 1727.770785 | D6: 1719.04877 | E6: 1647.130604 | F6: 1652.537796 | G6: 1653.91797
A7: Less income from connections | B7: 41.8826124 | C7: 41.8826124 | D7: 41.8826124 | E7: 41.8826124 | F7: 41.8826124 | G7: 44.002401
A8: Income from TNUoS | B8: =+B6-B7 -> 1706.874486 | C8: 1685.888173 | D8: 1677.166158 | E8: 1605.247991 | F8: 1610.655184 | G8: 1609.915569
A10: Scottish Power Transmission
A11: Price controlled revenue | B11: =+B12+B13 -> 333.7400004 | C11: 390.5406563 | D11: 377.7324664 | E11: 360.4666661 | F11: 361.2031977 | G11: 364.83
A12: Less income from connections | B12: 12.7748 | C12: 26.77954198 | D12: 13.97135212 | E12: 14.2 | F12: 14.2 | G12: 14.86914685
A13: Income from TNUoS | B13: 320.9652004 | C13: 363.7611143 | D13: 363.7611143 | E13: 346.2666661 | F13: =F11-F12 -> 347.0031977 | G13: =G11-G12 -> 349.9608532
A15: SHE Transmission
A16: Price controlled revenue | B16: =+B17+B18 -> 304.7232629 | C16: 366.4865595 | D16: 366.7346057 | E16: 358.5854343 | F16: 366.44487 | G16: 369.818
A17: Less income from connections | B17: 3.355 | C17: 3.244007514 | D17: 3.589042111 | E17: 3.463507629 | F17: 3.4 | G17: 3.407116
A18: Income from TNUoS | B18: 301.3682629 | C18: 363.242552 | D18: 363.1455636 | E18: 355.1219267 | F18: =F16-F17 -> 363.04487 | G18: =G16-G17 -> 366.410884
A20: Offshore | B20: 270.2046075 | C20: 380.1660375 | D20: 373.1840603 | E20: 312.1458731 | F20: 315.7937421 | G20: 318.1438119
A21: Network Innovation Competition | B21: 32.07110048 | C21: 40.5 | D21: 40.5 | E21: 40.5 | F21: 40.5 | G21: 32.66440404
A22: EDR | D22: 2 | E22: 2
A23: Interconnectors (Cap & Floor) | F23: =G23 -> -6.8 | G23: -6.8
A24: Total to Collect from TNUoS | B24: =+B22+B21+B20+B18+B13+B8 -> 2631.483657 | C24: 2833.557877 | D24: 2819.756896 | E24: 2661.282457 | F24: =+F22+F21+F20+F18+F13+F8+F23 -> 2670.196993 | G24: =+G22+G21+G20+G18+G13+G8+G23 -> 2670.295522

Sheet T16
A1: Table 16 - Generation and Demand Revenue Proportions | G1: Return to Index
C3: 2017/18 Final | D3: 2018/19 Initial | E3: 2018/19 June | F3: 2018/19 October | G3: 2018/19 Draft | H3: 2018/19 Final
A4: CAPEC | B4: Limit on generation tariff (€/MWh) | C4: 2.5 | D4: 2.5 | E4: 2.5 | F4: 2.5 | G4: 2.5 | H4: 2.5
A5: y | B5: Error Margin | C5: 0.21 | D5: 0.21 | E5: 0.21 | F5: 0.21 | G5: 0.21 | H5: 0.21
A6: ER | B6: Exchange Rate (€/£) | C6: 1.27 | D6: 1.11 | E6: 1.16 | F6: 1.16 | G6: 1.16 | H6: 1.16
A7: MAR | B7: Total Revenue (£m) | C7: 2631.483657 | D7: 2833.460889 | E7: 2819.756896 | F7: 2661.282457 | G7: 2670.196993 | H7: 2670.3
A8: GO | B8: Generation Output (TWh) | C8: 250.95 | D8: 239.9019902 | E8: 252.6242319 | F8: 252.6242319 | G8: 252.6242319 | H8: 252.6242319
A9: G | B9: % of revenue from generation | C9: 0.1483029882 | D9: 0.150647091 | E9: 0.1525360337 | F9: 0.1616192718 | G9: 0.1610797008 | H9: 0.1610734872
A10: D | B10: % of revenue from demand | C10: 0.8516970118 | D10: 0.849352909 | E10: 0.8474639663 | F10: 0.8383807282 | G10: 0.8389202992 | H10: 0.8389265128
A11: G.R | B11: Revenue recovered from generation (£m) | C11: 390.2568898 | D11: 426.8526403 | E11: 430.1145328 | F11: 430.1145328 | G11: 430.1145328 | H11: =H7*H9 -> 430.1145328
A12: D.R | B12: Revenue recovered from demand (£m) | C12: 2241.226767 | D12: 2406.608248 | E12: 2389.642363 | F12: 2231.167924 | G12: 2240.082461 | H12: =H7*H10 -> 2240.185467

Sheet T17
A1: Table 17 - Charging Bases | G1: Return to Index
A3: Charging Bases | B3: 2017/18 | C3: 2018/19 Initial | D3: 2018/19 June | E3: 2018/19 October | F3: 2018/19 Draft | G3: 2018/19 Final
A4: Generation (GW) | B4: 67.57976 | C4: 66.83466 | D4: 69.67141 | E4: 74.9781 | F4: 71.91801 | G4: 71.93431
A5: NHH Demand (4pm-7pm TWh) | B5: 25.31320332 | C5: 23.7 | D5: 24.1964169 | E5: 24.17225068 | F5: 24.17225068 | G5: 24.17225068
A6: Net Charging
A7: Total Average Net Triad (GW) | B7: 47.68435089 | C7: 46.43 | D7: 46.00402826 | E7: 45.94727154 | F7: 45.94727154 | G7: 45.94727154
A8: HH Demand Average Net Triad (GW) | B8: 13.22705491 | C8: 14.25 | D8: 13.18672857 | E8: 13.28536457 | F8: 13.28536457 | G8: 13.28536457
A9: Gross charging
A10: Total Average Gross Triad (GW) | B10: Introduced by CMP264/265 | E10: 52.46307414 | F10: 52.46307414 | G10: 52.46307414
A11: HH Demand Average Gross Triad (GW) | E11: 19.80116716 | F11: 19.80116716 | G11: 19.80116716
A12: Embedded Generation Export (GW) | E12: 6.515802595 | F12: 6.515802595 | G12: 6.515802595

Sheet T18
A1: Table 18 - Residual Calculation | G1: Return to Index
B3: Component | C3: 2017/18 | D3: 2018/19 Initial | E3: 2018/19 June | F3: 2018/19 October | G3: 2018/19 Draft | H3: 2018/19 Final
A4: G | B4: Proportion of revenue recovered from generation (%) | C4: 0.1483029882 | D4: 0.150647091 | E4: 0.1525360337 | F4: 0.1616192718 | G4: 0.1610797008 | H4: 0.1610734872
A5: D | B5: Proportion of revenue recovered from demand (%) | C5: 0.8516970118 | D5: 0.849352909 | E5: 0.8474639663 | F5: 0.8383807282 | G5: 0.8389202992 | H5: 0.8389265128
A6: R | B6: Total TNUoS revenue (£m) | C6: 2631.483657 | D6: 2833.460889 | E6: 2819.756896 | F6: 2661.282457 | G6: 2670.196993 | H6: 2670.3
A7: Generation Residual
A8: RG | B8: Generator residual tariff (£/kW) | C8: -1.853883063 | D8: =((D6*D4)-D9-D10-D11-D12)/D13 -> -3.203600603 | E8: =((E6*E4)-E9-E10-E11-E12)/E13 -> -3.282082833 | F8: =((F6*F4)-F9-F10-F11-F12)/F13 -> -2.337478141 | G8: =((G6*G4)-G9-G10-G11-G12)/G13 -> -2.517938223 | H8: -2.524517958
A9: ZG | B9: Revenue recovered from the locational element of generator tariffs (£m) | C9: 274.9672887 | D9: 313.2079284 | E9: 334.0318324 | F9: 322.2026961 | G9: 330.7850001 | H9: 329.4171241
A10: O | B10: Revenue recovered from offshore local tariffs (£m) | C10: 208.4681631 | D10: 293.901043 | E10: 288.423609 | F10: 244.004753 | G10: 243.625728 | H10: 245.310499
A11: LG | B11: Revenue recovered from onshore local substation tariffs (£m) | C11: 17.50045021 | D11: 16.97777347 | E11: 17.78604393 | F11: 20.68981721 | G11: 19.23186229 | H11: 19.23498507
A12: SG | B12: Revenue recovered from onshore local circuit tariffs (£m) | C12: 14.60596019 | D12: 16.87745251 | E12: 18.54038617 | F12: 18.47766094 | G12: 17.55704874 | H12: 17.75138208
A13: BG | B13: Generator charging base (GW) | C13: 67.57976 | D13: 66.83466 | E13: 69.67141 | F13: 74.97841 | G13: 71.91801 | H13: 71.93431
A14: Net Demand Residual
A15: RD | B15: Demand residual tariff (£/kW) | C15: 47.2607563 | D15: =((D6*D5)-D16)/D17 -> 52.24268712 | E15: =((E6*E5)-E16)/E17 -> 52.20455511 | F15: no longer calculated | G15: no longer calculated | H15: no longer calculated
A16: ZD | B16: Revenue recovered from the locational element of demand tariffs (£m) | C16: -12.37171951 | D16: -19.0197144 | E16: -11.97746549
A17: BD | B17: Demand Net charging base (GW) | C17: 47.68435089 | D17: 46.43 | E17: 46.00402826
A18: Gross Demand Residual
A19: RD | B19: Demand residual tariff (£/kW) | C19: Introduced by CMP264/265 to replace 'net residual' | F19: =(F5*F6-F20+F21)/F22 -> 46.90029384 | G19: =(G5*G6-G20+G21)/G22 -> 46.93783997 | H19: 46.93342565
A20: ZD | B20: Revenue recovered from the locational element of demand tariffs (£m) | F20: -64.15616909 | G20: -47.10296315 | H20: -46.71562914
A21: EE | B21: Amount to be paid to Embedded Export Tariffs (£m) | F21: 165.2094994 | G21: 175.3179543 | H21: 175.3706931
A22: BD | B22: Demand Gross charging base (GW) | F22: 52.46307414 | G22: 52.46307414 | H22: 52.46307414

Sheet T19
A1: Table 19 - Small Generator Discount | C1: Return to Index
A3: Small Generator Discount Calculation
A4: Generator Residual (£/kW) | B4: G | C4: -2.524517958
A5: Demand Residual (£/kW) | B5: D | C5: 46.93342565
A6: Small Generator Discount (£/kW) | B6: T = (G + D)/4 | C6: 11.102227
A7: Forecast Small Generator Volume (kW) | B7: V | C7: 2780910
A8: 2017/18 SGD cost (£) | B8: V x T | C8: =+C7*C6 -> 30874294.09
A9: Prior year reconcilation (£) | B9: R | C9: -236300.3867
A10: Total SGD Cost (£) | B10: C = (V x T) + R | C10: =C8+C9 -> 30637993.7
A11: Total System Triad Demand (kW) | B11: TD | C11: 45947271.54
A12: Total HH Triad Demand (kW) | B12: HHD | C12: 19801167.16
A13: Total NHH Consumption (kWh) | B13: NHHD | C13: 2.417225068e+10
A14: Increase in HH Demand tariff (£/kW) | B14: HHT = C/TD | C14: =+C10/C11 -> 0.6668076835
A15: Total Cost to HH Customers (£) | B15: HHC = HHT * HHD | C15: =+C14*C12 -> 13203570.41
A16: Increase in NHH Demand tariff (p/kWh) | B16: NHHT = (C - HHC)/NHHD | C16: =100*(+C10-(+C14*C12))/(C13) -> 0.07212577566
A17: Total Cost to NHH Customers (£) | B17: NHHC = NHHT * NHHD | C17: =(+C16*C13)/100 -> 17434423.29

Sheet T20
A1: Table 20 - Demand Locational Tariffs | G1: Return to Index
B3: 2018/19 Draft | D3: 2018/19 Final | F3: Changes
A4: Zone | B4: Peak (£/kW) | C4: Year Round (£/kW) | D4: Peak (£/kW) | E4: Year Round (£/kW) | F4: Peak (£/kW) | G4: Year Round (£/kW)
A5: 1 | B5: 3.065285309 | C5: -24.29759241 | D5: 3.074136623 | E5: -24.29633037 | F5: =D5-B5 -> 0.008851314104 | G5: =E5-C5 -> 0.001262041499
A6: 2 | B6: 0.1346858694 | C6: -18.6069102 | D6: 0.1347350448 | E6: -18.59073371 | F6: 4.917531489e-05 | G6: 0.01617649037
A7: 3 | B7: -3.097680926 | C7: -6.616659581 | D7: -3.098072179 | E7: -6.611526177 | F7: -0.0003912533341 | G7: 0.005133403736
A8: 4 | B8: -1.21466933 | C8: -2.512235409 | D8: -1.215100759 | E8: -2.505083837 | F8: -0.0004314283568 | G8: 0.007151571942
A9: 5 | B9: -2.902126984 | C9: -0.5575075693 | D9: -2.902564284 | E9: -0.5506498377 | F9: -0.0004373002565 | G9: 0.006857731583
A10: 6 | B10: -2.33465262 | C10: 0.3132862881 | D10: -2.335128885 | E10: 0.3214681119 | F10: -0.0004762643939 | G10: 0.008181823746
A11: 7 | B11: -2.257707107 | C11: 2.226057042 | D11: -2.258155805 | E11: 2.233219109 | F11: -0.000448697296 | G11: 0.007162067022
A12: 8 | B12: -1.800712194 | C12: 3.064230609 | D12: -1.801171612 | E12: 3.0717372 | F12: -0.000459417905 | G12: 0.007506591611
A13: 9 | B13: 1.14050289 | C13: 0.7550278032 | D13: 1.140057775 | E13: 0.7620654876 | F13: -0.0004451157131 | G13: 0.007037684425
A14: 10 | B14: -6.151443156 | C14: 4.422608296 | D14: -6.151895534 | E14: 4.429879643 | F14: -0.000452377913 | G14: 0.007271346669
A15: 11 | B15: 3.869827602 | C15: 0.7074822639 | D15: 3.869380259 | E15: 0.7145923795 | F15: -0.0004473426932 | G15: 0.007110115516
A16: 12 | B16: 5.11915462 | C16: 2.254469826 | D16: 5.118708229 | E16: 2.261549257 | F16: -0.0004463918482 | G16: 0.007079431389
A17: 13 | B17: 1.63785995 | C17: 4.248798646 | D17: 1.63741068 | E17: 4.255970929 | F17: -0.0004492699749 | G17: 0.007172282799
A18: 14 | B18: -1.02805156 | C18: 5.362369211 | D18: -1.028502563 | E18: 5.369596691 | F18: -0.0004510028722 | G18: 0.007227479868

Sheet T21
A1: Table 21 - Demand Profiles | L1: Return to Index
A3: Zone | B3: Zone Name | C3: 2018/19 Draft | H3: 2018/19 Final | I3: 2018/19 Final | J3: 2018/19 Final | K3: 2018/19 Final | L3: 2018/19 Final
C4: Locational Model Demand (MW) | D4: GROSS Tariff model Peak Demand (MW) | E4: GROSS Tariff Model HH Demand (MW) | F4: Tariff model NHH Demand (TWh) | G4: Tariff model Embedded Export (MW) | H4: Locational Model Demand (MW) | I4: GROSS Tariff model Peak Demand (MW) | J4: GROSS Tariff Model HH Demand (MW) | K4: Tariff model NHH Demand (TWh) | L4: Tariff model Embedded Export (MW)
A5: 1 | B5: Northern Scotland | C5: 640.4405683 | D5: 1477.054512 | E5: 489.0588999 | F5: 0.7408035074 | G5: 1000.842162 | H5: 640.4405683 | I5: 1477.054512 | J5: 489.0588999 | K5: 0.7408035074 | L5: 1000.842162
A6: 2 | B6: Southern Scotland | C6: 2724.130533 | D6: 3500.496107 | E6: 1258.785484 | F6: 1.66322602 | G6: 669.5256566 | H6: 2724.130533 | I6: 3500.496107 | J6: 1258.785484 | K6: 1.66322602 | L6: 669.5256566
A7: 3 | B7: Northern | C7: 2648.876743 | D7: 2663.979497 | E7: 1078.298507 | F7: 1.199962226 | G7: 580.7280671 | H7: 2648.876743 | I7: 2663.979497 | J7: 1078.298507 | K7: 1.199962226 | L7: 580.7280671
A8: 4 | B8: North West | C8: 3168.933488 | D8: 4116.856896 | E8: 1522.52028 | F8: 1.932306722 | G8: 343.4135798 | H8: 3168.933488 | I8: 4116.856896 | J8: 1522.52028 | K8: 1.932306722 | L8: 343.4135798
A9: 5 | B9: Yorkshire | C9: 4387.658401 | D9: 3919.728623 | E9: 1609.734554 | F9: 1.76052198 | G9: 635.2966732 | H9: 4387.658401 | I9: 3919.728623 | J9: 1609.734554 | K9: 1.76052198 | L9: 635.2966732
A10: 6 | B10: N Wales & Mersey | C10: 2393.690698 | D10: 2677.573899 | E10: 1085.298335 | F10: 1.222886017 | G10: 537.9364229 | H10: 2393.690698 | I10: 2677.573899 | J10: 1085.298335 | K10: 1.222886017 | L10: 537.9364229
A11: 7 | B11: East Midlands | C11: 5295.75 | D11: 4763.00739 | E11: 1878.074412 | F11: 2.160075086 | G11: 476.682221 | H11: 5295.75 | I11: 4763.00739 | J11: 1878.074412 | K11: 2.160075086 | L11: 476.682221
A12: 8 | B12: Midlands | C12: 4409.82 | D12: 4370.505227 | E12: 1616.95794 | F12: 1.995256817 | G12: 211.4544623 | H12: 4409.82 | I12: 4370.505227 | J12: 1616.95794 | K12: 1.995256817 | L12: 211.4544623
A13: 9 | B13: Eastern | C13: 6097.281418 | D13: 6604.513643 | E13: 2132.610743 | F13: 3.085641687 | G13: 624.2080254 | H13: 6097.281418 | I13: 6604.513643 | J13: 2132.610743 | K13: 3.085641687 | L13: 624.2080254
A14: 10 | B14: South Wales | C14: 1666.222402 | D14: 1842.641732 | E14: 838.7434669 | F14: 0.8293664415 | G14: 331.3401138 | H14: 1666.222402 | I14: 1842.641732 | J14: 838.7434669 | K14: 0.8293664415 | L14: 331.3401138
A15: 11 | B15: South East | C15: 3813.095307 | D15: 3999.298669 | E15: 1168.966799 | F15: 1.910257878 | G15: 318.3285428 | H15: 3813.095307 | I15: 3999.298669 | J15: 1168.966799 | K15: 1.910257878 | L15: 318.3285428
A16: 12 | B16: London | C16: 5379.574916 | D16: 4322.863494 | E16: 2285.729746 | F16: 1.836101042 | G16: 149.0715507 | H16: 5379.574916 | I16: 4322.863494 | J16: 2285.729746 | K16: 1.836101042 | L16: 149.0715507
A17: 13 | B17: Southern | C17: 6219.676552 | D17: 5583.914549 | E17: 2072.206377 | F17: 2.563259144 | G17: 436.6576918 | H17: 6219.676552 | I17: 5583.914549 | J17: 2072.206377 | K17: 2.563259144 | L17: 436.6576918
A18: 14 | B18: South Western | C18: 2244.394532 | D18: 2620.639899 | E18: 764.1816184 | F18: 1.272586109 | G18: 200.3174261 | H18: 2244.394532 | I18: 2620.639899 | J18: 764.1816184 | K18: 1.272586109 | L18: 200.3174261
A19: Total | C19: 51089.54556 | D19: 52463.07414 | E19: 19801.16716 | F19: 24.17225068 | G19: 6515.802595 | H19: 51089.54556 | I19: 52463.07414 | J19: 19801.16716 | K19: 24.17225068 | L19: 6515.802595

Sheet T22
A1: Table 22 - Annual Load Factors | L1: Return to Index
A5: Power Station | B5: Technology | C5: Yearly Load Factor Source | H5: Yearly Load Factor Value | M5: Specific ALF
C6: 2012 | D6: 2013 | E6: 2014 | F6: 2015 | G6: 2016 | H6: 2012 | I6: 2013 | J6: 2014 | K6: 2015 | L6: 2016
A7: ABERTHAW | B7: Coal | C7: Actual | D7: Actual | E7: Actual | F7: Actual | G7: Actual | H7: 0.740137 | I7: 0.655413 | J7: 0.590043 | K7: 0.542611 | L7: 0.508335 | M7: 0.596022
A8: ACHRUACH | B8: Onshore_Wind | C8: Generic | D8: Generic | E8: Generic | F8: Partial | G8: Actual | H8: 0 | I8: 0 | J8: 0 | K8: 0.336464 | L8: 0.36714 | M8: 0.348994
A9: AN SUIDHE WIND FARM | B9: Onshore_Wind | C9: Actual | D9: Actual | E9: Actual | F9: Actual | G9: Actual | H9: 0.31638 | I9: 0.415843 | J9: 0.369422 | K9: 0.3549 | L9: 0.340938 | M9: 0.355087
A10: ARECLEOCH | B10: Onshore_Wind | C10: Actual | D10: Actual | E10: Actual | F10: Actual | G10: Actual | H10: 0.324826 | I10: 0.338296 | J10: 0.297298 | K10: 0.368612 | L10: 0.197246 | M10: 0.32014
A11: BAGLAN BAY | B11: CCGT_CHP | C11: Actual | D11: Actual | E11: Actual | F11: Actual | G11: Actual | H11: 0.275756 | I11: 0.164106 | J11: 0.379194 | K11: 0.291228 | L11: 0.55203 | M11: 0.315393
A12: BARKING | B12: CCGT_CHP | C12: Actual | D12: Actual | E12: Partial | F12: Generic | G12: Generic | H12: 0.023383 | I12: 0.018802 | J12: 0.14193 | K12: 0 | L12: 0 | M12: 0.061371
A13: BARROW OFFSHORE WIND LTD | B13: Offshore_Wind | C13: Actual | D13: Actual | E13: Actual | F13: Actual | G13: Actual | H13: 0.42884 | I13: 0.54108 | J13: 0.470231 | K13: 0.471791 | L13: 0.442584 | M13: 0.461536
A14: BARRY | B14: CCGT_CHP | C14: Actual | D14: Actual | E14: Actual | F14: Actual | G14: Partial | H14: 0.006999 | I14: 0.012989 | J14: 0.004003 | K14: 0.021727 | L14: 0.2543 | M14: 0.013905
A15: BEAULY CASCADE | B15: Hydro | C15: Actual | D15: Actual | E15: Actual | F15: Actual | G15: Actual | H15: 0.254532 | I15: 0.356683 | J15: 0.371167 | K15: 0.350094 | L15: 0.304872 | M15: 0.337216
A16: BEINNEUN | B16: Onshore_Wind | C16: Generic | D16: Generic | E16: Generic | F16: Generic | G16: Partial | H16: 0 | I16: 0 | J16: 0 | K16: 0 | L16: 0.309622 | M16: 0.332125
A17: BHLARAIDH | B17: Onshore_Wind | C17: Generic | D17: Generic | E17: Generic | F17: Generic | G17: Partial | H17: 0 | I17: 0 | J17: 0 | K17: 0 | L17: 0.334338 | M17: 0.340364
A18: BLACK LAW | B18: Onshore_Wind | C18: Actual | D18: Actual | E18: Actual | F18: Actual | G18: Actual | H18: 0.220683 | I18: 0.319648 | J18: 0.267881 | K18: 0.269035 | L18: 0.234623 | M18: 0.25718
A19: BLACKLAW EXTENSION | B19: Onshore_Wind | C19: Generic | D19: Generic | E19: Generic | F19: Partial | G19: Actual | H19: 0 | I19: 0 | J19: 0 | K19: 0.334635 | L19: 0.131095 | M19: 0.269702
A20: BRIMSDOWN | B20: CCGT_CHP | C20: Actual | D20: Actual | E20: Actual | F20: Actual | G20: Actual | H20: 0.218759 | I20: 0.187645 | J20: 0.111229 | K20: 0.164463 | L20: 0.450615 | M20: 0.190289
A21: BURBO BANK | B21: Offshore_Wind | C21: Generic | D21: Generic | E21: Generic | F21: Actual | G21: Actual | H21: 0 | I21: 0 | J21: 0 | K21: 0.167781 | L21: 0.250233 | M21: 0.304355
A22: CARRAIG GHEAL | B22: Onshore_Wind | C22: Partial | D22: Actual | E22: Actual | F22: Actual | G22: Actual | H22: 0.298118 | I22: 0.45276 | J22: 0.489277 | K22: 0.456254 | L22: 0.404211 | M22: 0.466097
A23: CARRINGTON | B23: CCGT_CHP | C23: Generic | D23: Generic | E23: Generic | F23: Partial | G23: Actual | H23: 0 | I23: 0 | J23: 0 | K23: 0.387318 | L23: 0.580115 | M23: 0.46652
A24: CLUNIE SCHEME | B24: Hydro | C24: Actual | D24: Actual | E24: Actual | F24: Actual | G24: Actual | H24: 0.334563 | I24: 0.453256 | J24: 0.432488 | K24: 0.479711 | L24: 0.328297 | M24: 0.406769
A25: CLYDE (NORTH) | B25: Onshore_Wind | C25: Actual | D25: Actual | E25: Actual | F25: Actual | G25: Actual | H25: 0.285345 | I25: 0.426598 | J25: 0.368882 | K25: 0.41412 | L25: 0.268858 | M25: 0.356116
A26: CLYDE (SOUTH) | B26: Onshore_Wind | C26: Actual | D26: Actual | E26: Actual | F26: Actual | G26: Actual | H26: 0.316084 | I26: 0.398941 | J26: 0.294115 | K26: 0.399615 | L26: 0.348751 | M26: 0.354592
A27: CONNAHS QUAY | B27: CCGT_CHP | C27: Actual | D27: Actual | E27: Actual | F27: Actual | G27: Actual | H27: 0.185104 | I27: 0.128233 | J27: 0.183739 | K27: 0.282713 | L27: 0.374588 | M27: 0.217185
A28: CONON CASCADE | B28: Hydro | C28: Actual | D28: Actual | E28: Actual | F28: Actual | G28: Actual | H28: 0.475286 | I28: 0.54282 | J28: 0.555287 | K28: 0.58986 | L28: 0.486782 | M28: 0.528296
A29: CORRIEGARTH | B29: Onshore_Wind | C29: Generic | D29: Generic | E29: Generic | F29: Generic | G29: Partial | H29: 0 | I29: 0 | J29: 0 | K29: 0 | L29: 0.225644 | M29: 0.304133
A30: CORRIEMOILLIE | B30: Onshore_Wind | C30: Generic | D30: Generic | E30: Generic | F30: Generic | G30: Partial | H30: 0 | I30: 0 | J30: 0 | K30: 0 | L30: 0.322315 | M30: 0.336356
A31: CORYTON | B31: CCGT_CHP | C31: Actual | D31: Actual | E31: Actual | F31: Actual | G31: Actual | H31: 0.156869 | I31: 0.097852 | J31: 0.175123 | K31: 0.264 | L31: 0.630383 | M31: 0.198664
A32: COTTAM | B32: Coal | C32: Actual | D32: Actual | E32: Actual | F32: Actual | G32: Actual | H32: 0.6507 | I32: 0.673951 | J32: 0.514426 | K32: 0.344157 | L32: 0.149387 | M32: 0.503095
A33: COTTAM DEVELOPMENT CENTRE | B33: CCGT_CHP | C33: Actual | D33: Actual | E33: Actual | F33: Actual | G33: Actual | H33: 0.137361 | I33: 0.160249 | J33: 0.313132 | K33: 0.282382 | L33: 0.672482 | M33: 0.251921
A34: COUR | B34: Onshore_Wind | C34: Generic | D34: Generic | E34: Generic | F34: Generic | G34: Partial | H34: 0 | I34: 0 | J34: 0 | K34: 0 | L34: 0.383246 | M34: 0.356667
A35: COWES | B35: Gas_Oil | C35: Actual | D35: Actual | E35: Actual | F35: Actual | G35: Actual | H35: 0.001743 | I35: 0.000956 | J35: 0.003135 | K35: 0.004912 | L35: 0.005319 | M35: 0.003264
A36: CRUACHAN | B36: Pumped_Storage | C36: Actual | D36: Actual | E36: Actual | F36: Actual | G36: Actual | H36: 0.084281 | I36: 0.096969 | J36: 0.090516 | K36: 0.088673 | L36: 0.071914 | M36: 0.087823
A37: CRYSTAL RIG II | B37: Onshore_Wind | C37: Actual | D37: Actual | E37: Actual | F37: Actual | G37: Actual | H37: 0.406845 | I37: 0.502549 | J37: 0.475958 | K37: 0.483836 | L37: 0.402679 | M37: 0.455546
A38: CRYSTAL RIG III | B38: Onshore_Wind | C38: Generic | D38: Generic | E38: Generic | F38: Generic | G38: Partial | H38: 0 | I38: 0 | J38: 0 | K38: 0 | L38: 0.399503 | M38: 0.362086
A39: DAMHEAD CREEK | B39: CCGT_CHP | C39: Actual | D39: Actual | E39: Actual | F39: Actual | G39: Actual | H39: 0.450617 | I39: 0.771783 | J39: 0.674641 | K39: 0.648983 | L39: 0.681119 | M39: 0.668248
A40: DEESIDE | B40: CCGT_CHP | C40: Actual | D40: Actual | E40: Actual | F40: Actual | G40: Actual | H40: 0.197551 | I40: 0.173035 | J40: 0.139018 | K40: 0.174579 | L40: 0.27109 | M40: 0.181722
A41: DERSALLOCH | B41: Onshore_Wind | C41: Generic | D41: Generic | E41: Generic | F41: Generic | G41: Partial | H41: 0 | I41: 0 | J41: 0 | K41: 0 | L41: 0.337728 | M41: 0.341494
A42: DIDCOT B | B42: CCGT_CHP | C42: Actual | D42: Actual | E42: Actual | F42: Actual | G42: Actual | H42: 0.490134 | I42: 0.186624 | J42: 0.255345 | K42: 0.411389 | L42: 0.501358 | M42: 0.385623
A43: DIDCOT GTS | B43: Gas_Oil | C43: Actual | D43: Actual | E43: Actual | F43: Actual | G43: Actual | H43: 0.00072 | I43: 0.000902 | J43: 0.002843 | K43: 0.004861 | L43: 0.000452 | M43: 0.001488
A44: DINORWIG | B44: Pumped_Storage | C44: Actual | D44: Actual | E44: Actual | F44: Actual | G44: Actual | H44: 0.15099 | I44: 0.150898 | J44: 0.15065 | K44: 0.146353 | L44: 0.159596 | M44: 0.150846
A45: DRAX | B45: Coal | C45: Actual | D45: Actual | E45: Actual | F45: Actual | G45: Actual | H45: 0.824774 | I45: 0.805151 | J45: 0.822149 | K45: 0.76203 | L45: 0.622705 | M45: 0.796443
A46: DUDGEON | B46: Offshore_Wind | C46: Generic | D46: Generic | E46: Generic | F46: Generic | G46: Partial | H46: 0 | I46: 0 | J46: 0 | K46: 0 | L46: 0.424791 | M46: 0.471631
A47: DUNGENESS B | B47: Nuclear | C47: Actual | D47: Actual | E47: Actual | F47: Actual | G47: Actual | H47: 0.598295 | I47: 0.610068 | J47: 0.546917 | K47: 0.707617 | L47: 0.793403 | M47: 0.63866
A48: DUNLAW EXTENSION | B48: Onshore_Wind | C48: Actual | D48: Actual | E48: Actual | F48: Actual | G48: Actual | H48: 0.323771 | I48: 0.348226 | J48: 0.300797 | K48: 0.291203 | L48: 0.265549 | M48: 0.305257
A49: DUNMAGLASS | B49: Onshore_Wind | C49: Generic | D49: Generic | E49: Generic | F49: Generic | G49: Partial | H49: 0 | I49: 0 | J49: 0 | K49: 0 | L49: 0.389713 | M49: 0.358822
A50: EDINBANE WIND | B50: Onshore_Wind | C50: Actual | D50: Actual | E50: Actual | F50: Actual | G50: Actual | H50: 0.293933 | I50: 0.394785 | J50: 0.312458 | K50: 0.355937 | L50: 0.325009 | M50: 0.331135
A51: EGGBOROUGH | B51: Coal | C51: Actual | D51: Actual | E51: Actual | F51: Actual | G51: Partial | H51: 0.726884 | I51: 0.721843 | J51: 0.457421 | K51: 0.270157 | L51: 0.397693 | M51: 0.635383
A52: ERROCHTY | B52: Hydro | C52: Actual | D52: Actual | E52: Actual | F52: Actual | G52: Actual | H52: 0.145869 | I52: 0.282628 | J52: 0.253585 | K52: 0.281507 | L52: 0.161775 | M52: 0.232289
A53: EWE HILL | B53: Onshore_Wind | C53: Generic | D53: Generic | E53: Generic | F53: Generic | G53: Partial | H53: 0 | I53: 0 | J53: 0 | K53: 0 | L53: 0.333314 | M53: 0.340023
A54: FALLAGO | B54: Onshore_Wind | C54: Partial | D54: Actual | E54: Actual | F54: Actual | G54: Actual | H54: 0.329869 | I54: 0.548683 | J54: 0.447267 | K54: 0.557992 | L54: 0.432176 | M54: 0.517981
A55: FARR WINDFARM TOMATIN | B55: Onshore_Wind | C55: Actual | D55: Actual | E55: Actual | F55: Actual | G55: Actual | H55: 0.340149 | I55: 0.447212 | J55: 0.385712 | K55: 0.409963 | L55: 0.341766 | M55: 0.379147
A56: FASNAKYLE G1 & G3 | B56: Hydro | C56: Actual | D56: Actual | E56: Actual | F56: Actual | G56: Actual | H56: 0.221176 | I56: 0.353695 | J56: 0.574834 | K56: 0.531573 | L56: 0.309768 | M56: 0.398345
A57: FAWLEY CHP | B57: CCGT_CHP | C57: Actual | D57: Actual | E57: Actual | F57: Actual | G57: Actual | H57: 0.611362 | I57: 0.633619 | J57: 0.728484 | K57: 0.576978 | L57: 0.632006 | M57: 0.625662
A58: FFESTINIOGG | B58: Pumped_Storage | C58: Actual | D58: Actual | E58: Actual | F58: Actual | G58: Actual | H58: 0.029286 | I58: 0.054631 | J58: 0.043251 | K58: 0.034113 | L58: 0.056749 | M58: 0.043999
A59: FIDDLERS FERRY | B59: Coal | C59: Actual | D59: Actual | E59: Actual | F59: Actual | G59: Actual | H59: 0.616386 | I59: 0.490374 | J59: 0.452435 | K59: 0.274591 | L59: 0.082478 | M59: 0.4058
A60: FINLARIG | B60: Hydro | C60: Actual | D60: Actual | E60: Actual | F60: Actual | G60: Actual | H60: 0.402952 | I60: 0.599142 | J60: 0.594092 | K60: 0.651349 | L60: 0.496402 | M60: 0.563212
A61: FOYERS | B61: Pumped_Storage | C61: Actual | D61: Actual | E61: Actual | F61: Actual | G61: Actual | H61: 0.1348 | I61: 0.147097 | J61: 0.123048 | K61: 0.154323 | L61: 0.113046 | M61: 0.134982
A62: FREASDAIL | B62: Onshore_Wind | C62: Generic | D62: Generic | E62: Generic | F62: Generic | G62: Partial | H62: 0 | I62: 0 | J62: 0 | K62: 0 | L62: 0.3256 | M62: 0.337451
A63: GALAWHISTLE | B63: Onshore_Wind | C63: Generic | D63: Generic | E63: Generic | F63: Generic | G63: Partial | H63: 0 | I63: 0 | J63: 0 | K63: 0 | L63: 0.349764 | M63: 0.345506
A64: GARRY CASCADE | B64: Hydro | C64: Actual | D64: Actual | E64: Actual | F64: Actual | G64: Actual | H64: 0.485993 | I64: 0.559308 | J64: 0.643828 | K64: 0.602772 | L64: 0.610498 | M64: 0.590859
A65: GLANDFORD BRIGG | B65: CCGT_CHP | C65: Actual | D65: Actual | E65: Actual | F65: Actual | G65: Actual | H65: 0.003336 | I65: 0.015673 | J65: 0.005401 | K65: 0.018191 | L65: 0.027682 | M65: 0.013088
A66: GLEN APP | B66: Onshore_Wind | C66: Generic | D66: Generic | E66: Generic | F66: Generic | G66: Partial | H66: 0 | I66: 0 | J66: 0 | K66: 0 | L66: 0.251373 | M66: 0.312709
A67: GLENDOE | B67: Hydro | C67: Actual | D67: Actual | E67: Actual | F67: Actual | G67: Actual | H67: 0.17335 | I67: 0.363802 | J67: 0.323494 | K67: 0.348532 | L67: 0.238605 | M67: 0.303544
A68: GLENMORISTON | B68: Hydro | C68: Actual | D68: Actual | E68: Actual | F68: Actual | G68: Actual | H68: 0.363045 | I68: 0.444594 | J68: 0.487487 | K68: 0.506921 | L68: 0.346709 | M68: 0.431709
A69: GORDONBUSH | B69: Onshore_Wind | C69: Actual | D69: Actual | E69: Actual | F69: Actual | G69: Actual | H69: 0.37893 | I69: 0.465594 | J69: 0.477981 | K69: 0.477161 | L69: 0.504126 | M69: 0.473579
A70: GRAIN | B70: CCGT_CHP | C70: Actual | D70: Actual | E70: Actual | F70: Actual | G70: Actual | H70: 0.25458 | I70: 0.413833 | J70: 0.440031 | K70: 0.397895 | L70: 0.538227 | M70: 0.417253
A71: GRANGEMOUTH | B71: CCGT_CHP | C71: Actual | D71: Actual | E71: Actual | F71: Actual | G71: Actual | H71: 0.528594 | I71: 0.559047 | J71: 0.626168 | K71: 0.598274 | L71: 0.514558 | M71: 0.561972
A72: GREAT YARMOUTH | B72: CCGT_CHP | C72: Actual | D72: Actual | E72: Actual | F72: Actual | G72: Actual | H72: 0.19027 | I72: 0.207409 | J72: 0.186633 | K72: 0.598957 | L72: 0.63512 | M72: 0.332212
A73: GREATER GABBARD OFFSHORE WIND FARM | B73: Offshore_Wind | C73: Actual | D73: Actual | E73: Actual | F73: Actual | G73: Actual | H73: 0.401778 | I73: 0.483038 | J73: 0.421327 | K73: 0.502468 | L73: 0.431132 | M73: 0.445166
A74: GRIFFIN WIND | B74: Onshore_Wind | C74: Actual | D74: Actual | E74: Actual | F74: Actual | G74: Actual | H74: 0.179885 | I74: 0.319566 | J74: 0.313152 | K74: 0.310284 | L74: 0.258228 | M74: 0.293888
A75: GUNFLEET SANDS I | B75: Offshore_Wind | C75: Actual | D75: Actual | E75: Actual | F75: Actual | G75: Actual | H75: 0.501496 | I75: 0.566472 | J75: 0.470132 | K75: 0.50465 | L75: 0.45794 | M75: 0.492093
A76: GUNFLEET SANDS II | B76: Offshore_Wind | C76: Actual | D76: Actual | E76: Actual | F76: Actual | G76: Actual | H76: 0.450132 | I76: 0.522361 | J76: 0.447211 | K76: 0.490521 | L76: 0.439893 | M76: 0.462622
A77: GWYNT Y MOR | B77: Offshore_Wind | C77: Partial | D77: Actual | E77: Actual | F77: Actual | G77: Actual | H77: 0.188535 | I77: 0.080036 | J77: 0.616185 | K77: 0.631276 | L77: 0.448323 | M77: 0.565262
A78: HADYARD HILL | B78: Onshore_Wind | C78: Actual | D78: Actual | E78: Actual | F78: Actual | G78: Actual | H78: 0.276927 | I78: 0.319488 | J78: 0.277635 | K78: 0.366527 | L78: 0.314364 | M78: 0.303829
A79: HARESTANES | B79: Onshore_Wind | C79: Generic | D79: Partial | E79: Actual | F79: Actual | G79: Actual | H79: 0 | I79: 0.222448 | J79: 0.286355 | K79: 0.278093 | L79: 0.225464 | M79: 0.263304
A80: HARTLEPOOL | B80: Nuclear | C80: Actual | D80: Actual | E80: Actual | F80: Actual | G80: Actual | H80: 0.802632 | I80: 0.737557 | J80: 0.562803 | K80: 0.538666 | L80: 0.78039 | M80: 0.693583
A81: HEYSHAM | B81: Nuclear | C81: Actual | D81: Actual | E81: Actual | F81: Actual | G81: Actual | H81: 0.833828 | I81: 0.733628 | J81: 0.688252 | K81: 0.727344 | L81: 0.796169 | M81: 0.75238
A82: HINKLEY POINT B | B82: Nuclear | C82: Actual | D82: Actual | E82: Actual | F82: Actual | G82: Actual | H82: 0.617582 | I82: 0.688664 | J82: 0.701411 | K82: 0.676412 | L82: 0.712265 | M82: 0.688829
A83: HUMBER GATEWAY OFFSHORE WIND FARM | B83: Offshore_Wind | C83: Generic | D83: Generic | E83: Generic | F83: Actual | G83: Actual | H83: 0 | I83: 0 | J83: 0 | K83: 0.629631 | L83: 0.597195 | M83: 0.573959
A84: HUNTERSTON | B84: Nuclear | C84: Actual | D84: Actual | E84: Actual | F84: Actual | G84: Actual | H84: 0.735984 | I84: 0.847953 | J84: 0.791368 | K84: 0.821786 | L84: 0.832939 | M84: 0.815365
A85: IMMINGHAM | B85: CCGT_CHP | C85: Actual | D85: Actual | E85: Actual | F85: Actual | G85: Actual | H85: 0.501793 | I85: 0.378219 | J85: 0.568316 | K85: 0.694686 | L85: 0.71955 | M85: 0.588265
A86: INDIAN QUEENS | B86: Gas_Oil | C86: Actual | D86: Actual | E86: Actual | F86: Actual | G86: Actual | H86: 0.003423 | I86: 0.002321 | J86: 0.000876 | K86: 0.000723 | L86: 0.000847 | M86: 0.001348
A87: KEADBY | B87: CCGT_CHP | C87: Actual | D87: Actual | E87: Generic | F87: Partial | G87: Actual | H87: 0.046125 | I87: 1e-06 | J87: 0 | K87: 0.351858 | L87: 0.286076 | M87: 0.110734
A88: KILBRAUR | B88: Onshore_Wind | C88: Actual | D88: Actual | E88: Actual | F88: Actual | G88: Actual | H88: 0.452306 | I88: 0.513777 | J88: 0.54355 | K88: 0.503807 | L88: 0.465342 | M88: 0.494309
A89: KILGALLIOCH | B89: Onshore_Wind | C89: Generic | D89: Generic | E89: Generic | F89: Generic | G89: Partial | H89: 0 | I89: 0 | J89: 0 | K89: 0 | L89: 0.252739 | M89: 0.313164
A90: KILLIN CASCADE | B90: Hydro | C90: Actual | D90: Actual | E90: Actual | F90: Actual | G90: Actual | H90: 0.323429 | I90: 0.455356 | J90: 0.448205 | K90: 0.532348 | L90: 0.274962 | M90: 0.408997
A91: KILLINGHOLME (NP) | B91: CCGT_CHP | C91: Actual | D91: Actual | E91: Actual | F91: Generic | G91: Generic | H91: 0.106552 | I91: 0.074217 | J91: 0.116191 | K91: 0 | L91: 0 | M91: 0.098987
A92: KILLINGHOLME (POWERGEN) | B92: Gas_Oil | C92: Generic | D92: Generic | E92: Generic | F92: Generic | G92: Generic | H92: 0 | I92: 0 | J92: 0 | K92: 0 | L92: 0 | M92: 0
A93: KINGS LYNN A | B93: CCGT_CHP | C93: Actual | D93: Actual | E93: Actual | F93: Generic | G93: Generic | H93: 3e-06 | I93: 0 | J93: 0 | K93: 0 | L93: 0 | M93: 1e-06
A94: LANGAGE | B94: CCGT_CHP | C94: Actual | D94: Actual | E94: Actual | F94: Actual | G94: Actual | H94: 0.419115 | I94: 0.408749 | J94: 0.348629 | K94: 0.16531 | L94: 0.445413 | M94: 0.392164
A95: LINCS WIND FARM | B95: Offshore_Wind | C95: Partial | D95: Actual | E95: Actual | F95: Actual | G95: Actual | H95: 0.203244 | I95: 0.465987 | J95: 0.438178 | K95: 0.491306 | L95: 0.445192 | M95: 0.467495
A96: LITTLE BARFORD | B96: CCGT_CHP | C96: Actual | D96: Actual | E96: Actual | F96: Actual | G96: Actual | H96: 0.163807 | I96: 0.336286 | J96: 0.496644 | K96: 0.399829 | L96: 0.648597 | M96: 0.41092
A97: LOCHLUICHART | B97: Onshore_Wind | C97: Generic | D97: Partial | E97: Actual | F97: Actual | G97: Actual | H97: 0 | I97: 0.249397 | J97: 0.202103 | K97: 0.292663 | L97: 0.316897 | M97: 0.270554
A98: LONDON ARRAY | B98: Offshore_Wind | C98: Partial | D98: Actual | E98: Actual | F98: Actual | G98: Actual | H98: 0.38952 | I98: 0.512703 | J98: 0.64088 | K98: 0.668682 | L98: 0.536245 | M98: 0.615269
A99: LYNEMOUTH | B99: Coal | C99: Generic | D99: Generic | E99: Generic | F99: Partial | G99: Generic | H99: 0 | I99: 0 | J99: 0 | K99: 0.680196 | L99: 0 | M99: 0.586875
A100: MARCHWOOD | B100: CCGT_CHP | C100: Actual | D100: Actual | E100: Actual | F100: Actual | G100: Actual | H100: 0.433537 | I100: 0.486845 | J100: 0.664021 | K100: 0.550879 | L100: 0.754248 | M100: 0.567248
A101: MARK HILL | B101: Onshore_Wind | C101: Actual | D101: Actual | E101: Actual | F101: Actual | G101: Actual | H101: 0.301675 | I101: 0.302863 | J101: 0.267942 | K101: 0.340227 | L101: 0.219653 | M101: 0.290827
A102: MEDWAY | B102: CCGT_CHP | C102: Actual | D102: Actual | E102: Actual | F102: Actual | G102: Actual | H102: 0.010718 | I102: 0.145545 | J102: 0.280962 | K102: 0.341799 | L102: 0.351505 | M102: 0.256102
A103: MILLENNIUM | B103: Onshore_Wind | C103: Actual | D103: Actual | E103: Actual | F103: Actual | G103: Actual | H103: 0.421318 | I103: 0.526618 | J103: 0.532636 | K103: 0.484038 | L103: 0.449764 | M103: 0.486806
A104: NANT | B104: Hydro | C104: Actual | D104: Actual | E104: Actual | F104: Actual | G104: Actual | H104: 0.208965 | I104: 0.355883 | J104: 0.36404 | K104: 0.373788 | L104: 0.30635 | M104: 0.342091
A105: ORMONDE | B105: Offshore_Wind | C105: Partial | D105: Actual | E105: Actual | F105: Actual | G105: Actual | H105: 0.488406 | I105: 0.496561 | J105: 0.428711 | K105: 0.471986 | L105: 0.412188 | M105: 0.465753
A106: PEMBROKE | B106: CCGT_CHP | C106: Actual | D106: Actual | E106: Actual | F106: Actual | G106: Actual | H106: 0.615434 | I106: 0.603928 | J106: 0.675346 | K106: 0.645596 | L106: 0.776478 | M106: 0.645459
A107: PEN Y CYMOEDD | B107: Onshore_Wind | C107: Generic | D107: Generic | E107: Generic | F107: Generic | G107: Partial | H107: 0 | I107: 0 | J107: 0 | K107: 0 | L107: 0.269446 | M107: 0.318733
A108: PETERBOROUGH | B108: CCGT_CHP | C108: Actual | D108: Actual | E108: Actual | F108: Partial | G108: Actual | H108: 0.009506 | I108: 0.018311 | J108: 0.010929 | K108: 0.041032 | L108: 0.017914 | M108: 0.015718
A109: PETERHEAD | B109: CCGT_CHP | C109: Actual | D109: Actual | E109: Actual | F109: Actual | G109: Actual | H109: 0.313766 | I109: 0.418811 | J109: 0.004858 | K109: 0.233813 | L109: 0.422292 | M109: 0.32213
A110: RACE BANK | B110: Offshore_Wind | C110: Generic | D110: Generic | E110: Generic | F110: Generic | G110: Partial | H110: 0 | I110: 0 | J110: 0 | K110: 0 | L110: 0.453062 | M110: 0.481055
A111: RATCLIFFE-ON-SOAR | B111: Coal | C111: Actual | D111: Actual | E111: Actual | F111: Actual | G111: Actual | H111: 0.667461 | I111: 0.717403 | J111: 0.561767 | K111: 0.196814 | L111: 0.154657 | M111: 0.475347
A112: ROBIN RIGG EAST | B112: Offshore_Wind | C112: Actual | D112: Actual | E112: Actual | F112: Actual | G112: Actual | H112: 0.374157 | I112: 0.467562 | J112: 0.553209 | K112: 0.5197 | L112: 0.505096 | M112: 0.497453
A113: ROBIN RIGG WEST | B113: Offshore_Wind | C113: Actual | D113: Actual | E113: Actual | F113: Actual | G113: Actual | H113: 0.382254 | I113: 0.480629 | J113: 0.53415 | K113: 0.560881 | L113: 0.515383 | M113: 0.510054
A114: ROCKSAVAGE | B114: CCGT_CHP | C114: Actual | D114: Actual | E114: Actual | F114: Actual | G114: Actual | H114: 0.41482 | I114: 0.026155 | J114: 0.044252 | K114: 0.198061 | L114: 0.586806 | M114: 0.219044
A115: RYE HOUSE | B115: CCGT_CHP | C115: Actual | D115: Actual | E115: Actual | F115: Actual | G115: Actual | H115: 0.107188 | I115: 0.074695 | J115: 0.053701 | K115: 0.077906 | L115: 0.156538 | M115: 0.086596
A116: SALTEND | B116: CCGT_CHP | C116: Actual | D116: Actual | E116: Actual | F116: Actual | G116: Actual | H116: 0.815834 | I116: 0.690062 | J116: 0.679518 | K116: 0.556228 | L116: 0.774019 | M116: 0.714533
A117: SEABANK | B117: CCGT_CHP | C117: Actual | D117: Actual | E117: Actual | F117: Actual | G117: Actual | H117: 0.152311 | I117: 0.182781 | J117: 0.256956 | K117: 0.272136 | L117: 0.416815 | M117: 0.237291
A118: SELLAFIELD | B118: CCGT_CHP | C118: Actual | D118: Actual | E118: Actual | F118: Actual | G118: Actual | H118: 0.140549 | I118: 0.250221 | J118: 0.189719 | K118: 0.28679 | L118: 0.198588 | M118: 0.212842
A119: SEVERN POWER | B119: CCGT_CHP | C119: Actual | D119: Actual | E119: Actual | F119: Actual | G119: Actual | H119: 0.277976 | I119: 0.324163 | J119: 0.246354 | K119: 0.183226 | L119: 0.644246 | M119: 0.282831
A120: SHERINGHAM SHOAL | B120: Offshore_Wind | C120: Actual | D120: Actual | E120: Actual | F120: Actual | G120: Actual | H120: 0.366431 | I120: 0.493517 | J120: 0.462286 | K120: 0.536184 | L120: 0.469715 | M120: 0.475173
A121: SHOREHAM | B121: CCGT_CHP | C121: Actual | D121: Actual | E121: Actual | F121: Actual | G121: Actual | H121: 0 | I121: 0.207501 | J121: 0.102239 | K121: 0.489514 | L121: 0.689863 | M121: 0.266418
A122: SIZEWELL B | B122: Nuclear | C122: Actual | D122: Actual | E122: Actual | F122: Actual | G122: Actual | H122: 0.96726 | I122: 0.825051 | J122: 0.847924 | K122: 0.987826 | L122: 0.816359 | M122: 0.880078
A123: SLOY G2 & G3 | B123: Hydro | C123: Actual | D123: Actual | E123: Actual | F123: Actual | G123: Actual | H123: 0.091252 | I123: 0.143471 | J123: 0.155941 | K123: 0.139439 | L123: 0.081782 | M123: 0.124721
A124: SOUTH HUMBER BANK | B124: CCGT_CHP | C124: Actual | D124: Actual | E124: Actual | F124: Actual | G124: Actual | H124: 0.279763 | I124: 0.243373 | J124: 0.344673 | K124: 0.486753 | L124: 0.553419 | M124: 0.370396
A125: SPALDING | B125: CCGT_CHP | C125: Actual | D125: Actual | E125: Actual | F125: Actual | G125: Actual | H125: 0.346976 | I125: 0.3348 | J125: 0.393092 | K125: 0.479407 | L125: 0.609748 | M125: 0.406492
A126: STAYTHORPE | B126: CCGT_CHP | C126: Actual | D126: Actual | E126: Actual | F126: Actual | G126: Actual | H126: 0.544117 | I126: 0.376216 | J126: 0.566148 | K126: 0.694422 | L126: 0.657791 | M126: 0.589352
A127: STRATHY NORTH & SOUTH | B127: Onshore_Wind | C127: Generic | D127: Generic | E127: Generic | F127: Partial | G127: Actual | H127: 0 | I127: 0 | J127: 0 | K127: 0.49634 | L127: 0.361987 | M127: 0.400568
A128: SUTTON BRIDGE | B128: CCGT_CHP | C128: Actual | D128: Actual | E128: Actual | F128: Actual | G128: Actual | H128: 0.201652 | I128: 0.094124 | J128: 0.172025 | K128: 0.131999 | L128: 0.380184 | M128: 0.168559
A129: TAYLORS LANE | B129: Gas_Oil | C129: Actual | D129: Actual | E129: Actual | F129: Actual | G129: Actual | H129: 0.002037 | I129: 0.000483 | J129: 0.00064 | K129: 0.001708 | L129: 0.008047 | M129: 0.001462
A130: THANET OFFSHORE WIND FARM | B130: Offshore_Wind | C130: Actual | D130: Actual | E130: Actual | F130: Actual | G130: Actual | H130: 0.411093 | I130: 0.397489 | J130: 0.355935 | K130: 0.413434 | L130: 0.337132 | M130: 0.388172
A131: TODDLEBURN | B131: Onshore_Wind | C131: Actual | D131: Actual | E131: Actual | F131: Actual | G131: Actual | H131: 0.327175 | I131: 0.395374 | J131: 0.337211 | K131: 0.350823 | L131: 0.313435 | M131: 0.338403
A132: TORNESS | B132: Nuclear | C132: Actual | D132: Actual | E132: Actual | F132: Actual | G132: Actual | H132: 0.848669 | I132: 0.864669 | J132: 0.914945 | K132: 0.857725 | L132: 0.979942 | M132: 0.879113
A133: USKMOUTH | B133: Coal | C133: Actual | D133: Actual | E133: Partial | F133: Actual | G133: Actual | H133: 0.451938 | I133: 0.389899 | J133: 0.469428 | K133: 0.255184 | L133: 0.243304 | M133: 0.365674
A134: WALNEY I | B134: Offshore_Wind | C134: Actual | D134: Actual | E134: Actual | F134: Actual | G134: Actual | H134: 0.442799 | I134: 0.577046 | J134: 0.520555 | K134: 0.507535 | L134: 0.474617 | M134: 0.500902
A135: WALNEY II | B135: Offshore_Wind | C135: Partial | D135: Actual | E135: Actual | F135: Actual | G135: Actual | H135: 0.547907 | I135: 0.619219 | J135: 0.582355 | K135: 0.357988 | L135: 0.549727 | M135: 0.583767
A136: WEST BURTON | B136: Coal | C136: Actual | D136: Actual | E136: Actual | F136: Actual | G136: Actual | H136: 0.705868 | I136: 0.689176 | J136: 0.615364 | K136: 0.327325 | L136: 0.101071 | M136: 0.543955
A137: WEST BURTON B | B137: CCGT_CHP | C137: Partial | D137: Actual | E137: Actual | F137: Actual | G137: Actual | H137: 0.213299 | I137: 0.303021 | J137: 0.468421 | K137: 0.593477 | L137: 0.542878 | M137: 0.534925
A138: WEST OF DUDDON SANDS OFFSHORE WIND FARM | B138: Offshore_Wind | C138: Generic | D138: Partial | E138: Actual | F138: Actual | G138: Actual | H138: 0 | I138: 0.404447 | J138: 0.400506 | K138: 0.48754 | L138: 0.487691 | M138: 0.458579
A139: WESTERMOST ROUGH | B139: Offshore_Wind | C139: Generic | D139: Generic | E139: Partial | F139: Actual | G139: Actual | H139: 0 | I139: 0 | J139: 0.2629 | K139: 0.548014 | L139: 0.581061 | M139: 0.463992
A140: WHITELEE | B140: Onshore_Wind | C140: Actual | D140: Actual | E140: Actual | F140: Actual | G140: Actual | H140: 0.282265 | I140: 0.351074 | J140: 0.298105 | K140: 0.318773 | L140: 0.272893 | M140: 0.299714
A141: WHITELEE EXTENSION | B141: Onshore_Wind | C141: Actual | D141: Actual | E141: Actual | F141: Actual | G141: Actual | H141: 0.124146 | I141: 0.270102 | J141: 0.277787 | K141: 0.267655 | L141: 0.235253 | M141: 0.25767
A142: WILTON | B142: CCGT_CHP | C142: Actual | D142: Actual | E142: Actual | F142: Actual | G142: Actual | H142: 0.034258 | I142: 0.044941 | J142: 0.215867 | K142: 0.161379 | L142: 0.14413 | M142: 0.116817

Sheet T23
A1: Table 23 - Generic Annual Load Factors | E1: Return to Index
A4: Technology | B4: Generic ALF
A5: Gas_Oil | B5: 0.00189
A6: Pumped_Storage | B6: 0.104412
A7: Tidal | B7: 0.189
A8: Biomass | B8: 0.268847
A9: Wave | B9: 0.31
A10: Onshore_Wind | B10: 0.343377
A11: CCGT_CHP | B11: 0.432127
A12: Hydro | B12: 0.413656
A13: Offshore_Wind | B13: 0.495051
A14: Coal | B14: 0.540215
A15: Nuclear | B15: 0.764001

Sheet T24
A1: Table 24 - Indicative National Grid Revenue Forecast | I1: Return to Index
D3: 2018-01-26
A4: Description | C4: Licence Term | D4: Yr t-1 | E4: Yr t | F4: Yr t+1 | I4: Notes
A5: Regulatory Year | D5: 2014/15 | E5: 2015/16 | F5: 2016/17 | G5: 2017/18 | H5: 2018/19
A6: Actual RPI | F6: 264.9916667 | I6: April to March average
A7: RPI Actual | C7: RPIAt | F7: 1.228 | I7: Office of National Statistics
A8: Assumed Interest Rate | C8: It | D8: 0.005 | E8: 0.007 | F8: 0.003360215054 | G8: 0.002916666667 | H8: 0.00705 | I8: Bank of England Base Rate
A9: Opening Base Revenue Allowance (2009/10 prices) | B9: A1 | C9: PUt | D9: 1443.829 | E9: 1475.593 | F9: 1571.387 | G9: 1554.942 | H9: 1587.627 | I9: From Licence
A10: Price Control Financial Model Iteration Adjustment | B10: A2 | C10: MODt | D10: -5.5 | E10: -114.4 | F10: -185.4 | G10: -253.3 | H10: -310.2408409 | I10: Forecast
A11: RPI True Up | B11: A3 | C11: TRUt | D11: -0.5272879137 | E11: 4.701911301 | F11: -19.92143138 | G11: -31.39722208 | H11: -6.084594215 | I11: Forecast
A12: Prior Calendar Year RPI Forecast | C12: GRPIFc-1 | D12: 0.031 | E12: 0.025 | F12: 0.01 | G12: 0.018 | H12: 0.036 | I12: HM Treasury Forecast
A13: Current Calendar Year RPI Forecast | C13: GRPIFc | D13: 0.031 | E13: 0.024 | F13: 0.021 | G13: 0.035 | H13: 0.034 | I13: HM Treasury Forecast
A14: Next Calendar Year RPI forecast | C14: GRPIFc+1 | D14: 0.03 | E14: 0.032 | F14: 0.03 | G14: 0.031 | H14: 0.031 | I14: HM Treasury Forecast
A15: RPI Forecast | B15: A4 | C15: RPIFt | D15: 1.2051 | E15: 1.226652821 | F15: 1.233 | G15: 1.271 | H15: 1.314 | I15: Using HM Treasury Forecast
A16: Base Revenue [A=(A1+A2+A3)*A4] | B16: A | C16: BRt | D16: =SUM(D9:D11)*D15 -> 1732.694843 | E16: =SUM(E9:E11)*E15 -> 1675.478846 | F16: 1684.358846 | G16: 1614.481113 | H16: 1670.490256
A17: Pass-Through Business Rates | B17: B1 | C17: RBt | E17: 1.23533081 | F17: 1.500117926 | G17: 2.689427883 | H17: 1.563034475 | I17: Forecast
A18: Temporary Physical Disconnection | B18: B2 | C18: TPDt | D18: 0.1439533986 | E18: 0.0123376894 | F18: 0.09047836118 | G18: 0 | H18: 0.7084275587 | I18: Forecast
A19: Licence Fee | B19: B3 | C19: LFt | E19: 2.02070276 | F19: 2.69339614 | G19: 3.18769528 | H19: -0.3766395763 | I19: Forecast
A20: Inter TSO Compensation | B20: B4 | C20: ITCt | E20: 3.822243508 | F20: 2.674543756 | G20: 0.4986231556 | H20: 1.344774379 | I20: Forecast
A21: Termination of Bilateral Connection Agreements | B21: B5 | C21: TERMt | D21: 0 | E21: 0 | F21: 0 | G21: 0 | H21: 0 | I21: Forecast
A22: SP Transmission Pass-Through | B22: B6 | C22: TSPt | D22: 312.179148 | E22: 295.664557 | F22: 294.623363 | G22: 320.9652004 | H22: 349.9608532 | I22: Forecast
A23: SHE Transmission Pass-Through | B23: B7 | C23: TSHt | D23: 213.9595177 | E23: 338.2073022 | F23: 322.8363165 | G23: 301.3682629 | H23: 366.411 | I23: Forecast
A24: Offshore Transmission Pass-Through | B24: B8 | C24: TOFTOt | D24: 218.3803735 | E24: 248.3569992 | F24: 260.7893126 | G24: 270.2046075 | H24: 318.1438119 | I24: Forecast
A25: Embedded Offshore Pass-Through | B25: B9 | C25: OFETt | D25: 0.4373360836 | E25: 0.6494191446 | F25: 0.6544976174 | G25: 0.5150651466 | H25: 0.5498180205 | I25: Forecast
A26: Interconnectors Cap&Floor Revenue Adjustment | B26: B10 | C26: TICFt | H26: -6.8 | I26: Forecast
A27: Pass-Through Items [B=B1+B2+B3+B4+B5+B6+B7+B8+B9+B10] | B27: B | C27: PTt | D27: =SUM(D17:D25) -> 745.1003286 | E27: =SUM(E17:E25) -> 889.9688923 | F27: 885.8620259 | G27: 899.4288823 | H27: =SUM(H17:H26) -> 1031.50508
A28: Reliability Incentive Adjustment | B28: C1 | C28: RIt | E28: 2.36156378 | F28: 3.92064433 | G28: 4.038087751 | H28: 4.135796856 | I28: Forecast
A29: Stakeholder Satisfaction Adjustment | B29: C2 | C29: SSOt | E29: 8.693059732 | F29: 10.12348826 | G29: 8.604733768 | H29: 9.276440124 | I29: Forecast
A30: Sulphur Hexafluoride (SF6) Gas Emissions Adjustment | B30: C3 | C30: SFIt | E30: 2.809201974 | F30: 2.661674685 | G30: 2.61332417 | H30: 1.434066097 | I30: Forecast
A31: Awarded Environmental Discretionary Rewards | B31: C4 | C31: EDRt | E31: 0 | F31: 2.0215575 | G31: 0 | H31: 0 | I31: Forecast
A32: Outputs Incentive Revenue [C=C1+C2+C3+C4] | B32: C | C32: OIPt | D32: =SUM(D28:D31) -> 0 | E32: =SUM(E28:E31) -> 13.86382549 | F32: 18.72736477 | G32: 15.25614569 | H32: =SUM(H28:H31) -> 14.84630308
A33: Network Innovation Allowance | B33: D | C33: NIAt | D33: 10.91597751 | E33: 10.55551673 | F33: 10.61146073 | G33: 10.17123101 | H33: 10.52408861 | I33: Forecast
A34: Network Innovation Competition | B34: E | C34: NICFt | D34: 17.849214 | E34: 18.76065592 | F34: 44.85487989 | G34: 32.07110048 | H34: 32.66440404 | I34: Forecast
A35: Future Environmental Discretionary Rewards | B35: F | C35: EDRt | D35: 0 | E35: 0 | F35: 0 | G35: 0 | H35: 0 | I35: Forecast
A36: Transmission Investment for Renewable Generation | B36: G | C36: TIRGt | D36: 15.99732651 | E36: 15.69901683 | F36: 0 | G36: 0 | H36: 0 | I36: Forecast
A37: Scottish Site Specific Adjustment | B37: H | C37: DISt | D37: 1.984914151 | E37: 0.791 | F37: 2.864922714 | G37: 6.057927949 | H37: 6.648 | I37: Forecast
A38: Scottish Terminations Adjustment | B38: I | C38: TSt | D38: -0.28187454 | E38: 0.101547 | F38: 0.07292861 | G38: -1.12155342 | H38: 3.071 | I38: Forecast
A39: Correction Factor | B39: K | C39: -Kt | D39: 0 | E39: 56.42377823 | F39: 103.977966 | G39: 97.02142261 | H39: -55.45109285 | I39: Calculated by Licensee
A40: Maximum Revenue [M= A+B+C+D+E+F+G+H+I+K] | B40: M | C40: TOt | D40: =D16+D27+D32+D33+D34+D35+D36+D37+D38+D39 -> 2524.26073 | E40: =E16+E27+E32+E33+E34+E35+E36+E37+E38+E39 -> 2681.643079 | F40: 2751.330395 | G40: 2673.366269 | H40: 2714.298039
A41: Pre-vesting connection charges | B41: P | D41: 46.95416236 | E41: 44.95520412 | F41: 42.67704326 | G41: 41.8826124 | H41: 44.002401 | I41: Forecast
A42: TNUoS Collected Revenue [T=M-B5-P] | B42: T | D42: =D40-D41 -> 2477.306567 | E42: =E40-E41 -> 2636.687875 | F42: =F40-F41 -> 2708.653351 | G42: =G40-G41 -> 2631.483657 | H42: =H40-H41 -> 2670.295638
A44: Notes:
A45: All monies are nominal 'money of the day' prices unless stated otherwise
A46: Licensee forecasts and budgets are subject to change especially where they are influenced by external stakeholders
A47: Greyed out cells are either calculated or not applicable in the year concerned due to the way the licence formula are constructed
A48: NIC payments to all Transmission Owners are inlcuded in National Grid Maximum Revenue and are included here
A49: 2014/15 - 2017/18 pass through to other networks is based on forecast at time of tariff setting
A50: Figures for historic years represent National Grid's forecast of TO revenues at the time final tariffs were calculated for each charging year rather than our current best view.

Sheet T25
A1: Table 25 - Offshore Revenues | G1: Return to Index
A3: Offshore Transmission Revenue Forecast | B3: 2018-01-26
G4: Notes
A5: Regulatory Year | B5: 2014/15 | C5: 2015/16 | D5: 2016/17 | E5: 2017/18 | F5: 2018/19
A6: Barrow | B6: 5.475948387 | C6: 5.605119166 | D6: 5.656283019 | E6: 5.872496367 | F6: 6.250052539 | G6: Current revenues plus indexation
A7: Gunfleet | B7: 6.853152423 | C7: 7.014459018 | D7: 7.080594599 | E7: 7.432422281 | F7: 7.801752691 | G7: Current revenues plus indexation
A8: Walney 1 | B8: 12.49105951 | C8: 12.78636456 | D8: 12.90184157 | E8: 13.13609825 | F8: 13.60716746 | G8: Current revenues plus indexation
A9: Robin Rigg | B9: 7.709472064 | C9: 7.891440662 | D9: 7.993308366 | E9: 8.367306563 | F9: 8.748852974 | G9: Current revenues plus indexation
A10: Walney 2 | B10: 12.92696073 | C10: 13.23221075 | D10: 12.51589741 | E10: 12.29931316 | F10: 16.32580671 | G10: Current revenues plus indexation
A11: Sheringham Shoal | B11: 18.92412411 | C11: 19.49893387 | D11: 19.72766462 | E11: 20.02531234 | F11: 20.74277833 | G11: Current revenues plus indexation
A12: Ormonde | B12: 11.57050189 | C12: 11.84309117 | D12: 11.95215008 | E12: 12.15604428 | F12: 12.59369632 | G12: Current revenues plus indexation
A13: Greater Gabbard | B13: 25.9995199 | C13: 26.61925023 | D13: 26.87143257 | E13: 27.3092326 | F13: 28.3875676 | G13: Current revenues plus indexation
A14: London Array | B14: 37.57295282 | C14: 39.2120985 | D14: 39.49870272 | E14: 39.51888334 | F14: 41.77261774 | G14: Current revenues plus indexation
A15: Thanet | B15: 78.85668167 | C15: 17.51705273 | D15: 15.69984448 | E15: 19.5121928 | F15: 18.62320211 | G15: Current revenues plus indexation
A16: Lincs | C16: 25.56339384 | D16: 26.68704214 | E16: 27.18814554 | F16: 28.16936445 | G16: Current revenues plus indexation
A17: Gwynt y mor | C17: 26.28358513 | D17: 23.6461166 | E17: 29.34287447 | F17: 32.73080929 | G17: Current revenues plus indexation
A18: West of Duddon Sands | C18: 35.2899996 | D18: 21.27389291 | E18: 22.04538798 | F18: 22.57265006 | G18: Current revenues plus indexation
A19: Humber Gateway | D19: 29.28454151 | E19: 9.749899087 | F19: 12.14541511 | G19: Current revenues plus indexation
A20: Westermost Rough | E20: 11.57669261 | F20: 13.19733993 | G20: Current revenues plus indexation
A21: Forecast to asset transfer to OFTO | E21: =4672306/1000000 -> 4.672306 | F21: 34.47473854 | G21: National Grid Forecast
A22: Forecast to asset transfer to OFTO in 2019/20 | G22: National Grid Forecast
A23: Forecast to asset transfer to OFTO in 2020/21 | G23: National Grid Forecast
A24: Forecast to asset transfer to OFTO in 2021/22 | G24: National Grid Forecast
A25: Offshore Transmission Pass-Through (B7) | B25: =SUM(B6:B24) -> 218.3803735 | C25: =SUM(C6:C24) -> 248.3569992 | D25: =SUM(D6:D24) -> 260.7893126 | E25: =SUM(E6:E24) -> 270.2046077 | F25: =SUM(F6:F24) -> 318.1438119
A28: Notes:
A29: Figures for historic years represent National Grid's forecast of OFTO revenues at the time final tariffs were calculated for each charging year rather than our current best view.
A30: Licensee forecasts and budgets are subject to change especially where they are influenced by external stakeholders
A31: Greyed out cells are either calculated or not applicable in the year concerned due to the way the licence formula are constructed
A32: NIC payments are not included as they do not form part of OFTO Maximum Revenue
